Workbook

Sheet Display
F2: CQG Invesco S&P 500® Momentum ETF | AB2: =RTD("cqg.rtd", ,"SystemInfo", "Linetime") -> 45792.37439
B5: Exchange Traded Funds Performance | S5: Top 15 Performing Companies
B6: Symbol | C6: Description | H6: Last | I6: NC | J6: %NC | K6: NC/ATR | L6: Open | M6: High | N6: Low | O6: Volume | Q6: Ratio
B7: SPMO | C7: =RTD("cqg.rtd", ,"ContractData",B7, "LongDescription",, "T") -> Invesco S&P 500 Momentum ETF | H7: =RTD("cqg.rtd", ,"ContractData",B7, "LastTradeToday",, "T") -> 103.84 | I7: =RTD("cqg.rtd", ,"ContractData",B7, "NetLastTradeToday",, "T") -> -0.82 | J7: =IFERROR(RTD("cqg.rtd", ,"ContractData",B7, "PerCentNetLastTrade",, "T")/100,"") -> -0.007834893942 | K7: =IFERROR(I7/RTD("cqg.rtd",,"StudyData",B7, "ATR", "MaType=Sim,Period=10", "ATR","D","-1","ALL",,,"FALSE","T")/100,"") -> -0.004311251314 | L7: =RTD("cqg.rtd", ,"ContractData",B7, "OPen",, "T") -> 103.96 | M7: =RTD("cqg.rtd", ,"ContractData", B7, "HIgh",, "T") -> 104.12 | N7: =RTD("cqg.rtd", ,"ContractData",B7, "LOw",, "T") -> 103.7 | O7: =RTD("cqg.rtd", ,"ContractData",B7, "T_CVol",, "T") -> 204328 | Q7: =IFERROR(O7/RTD("cqg.rtd",,"StudyData",B7, "MA", "InputChoice=Vol,MAType=Sim,Period=21", "MA","D","-1","all",,,,"T"),"") -> 0.1462952564
B8: SPY | C8: =RTD("cqg.rtd", ,"ContractData",B8, "LongDescription",, "T") -> SPDR S&P 500 | H8: =RTD("cqg.rtd", ,"ContractData",B8, "LastTradeToday",, "T") -> 585.96 | I8: =RTD("cqg.rtd", ,"ContractData",B8, "NetLastTradeToday",, "T") -> -1.63 | J8: =IFERROR(RTD("cqg.rtd", ,"ContractData",B8, "PerCentNetLastTrade",, "T")/100,"") -> -0.002774043125 | K8: =IFERROR(I8/RTD("cqg.rtd",,"StudyData",B8, "ATR", "MaType=Sim,Period=10", "ATR","D","-1","ALL",,,"FALSE","T")/100,"") -> -0.001987077898 | L8: =RTD("cqg.rtd", ,"ContractData",B8, "OPen",, "T") -> 585.56 | M8: =RTD("cqg.rtd", ,"ContractData", B8, "HIgh",, "T") -> 586.46 | N8: =RTD("cqg.rtd", ,"ContractData",B8, "LOw",, "T") -> 585.09 | O8: =RTD("cqg.rtd", ,"ContractData",B8, "T_CVol",, "T") -> 8206862 | Q8: =IFERROR(O8/RTD("cqg.rtd",,"StudyData",B8, "MA", "InputChoice=Vol,MAType=Sim,Period=21", "MA","D","-1","all",,,,"T"),"") -> 0.1274327172
B9: XLF | C9: =RTD("cqg.rtd", ,"ContractData",B9, "LongDescription",, "T") -> Financial Select Sector SPDR | H9: =RTD("cqg.rtd", ,"ContractData",B9, "LastTradeToday",, "T") -> 51.17 | I9: =RTD("cqg.rtd", ,"ContractData",B9, "NetLastTradeToday",, "T") -> 0.23 | J9: =IFERROR(RTD("cqg.rtd", ,"ContractData",B9, "PerCentNetLastTrade",, "T")/100,"") -> 0.004515115823 | K9: =IFERROR(I9/RTD("cqg.rtd",,"StudyData",B9, "ATR", "MaType=Sim,Period=10", "ATR","D","-1","ALL",,,"FALSE","T")/100,"") -> 0.00323943662 | L9: =RTD("cqg.rtd", ,"ContractData",B9, "OPen",, "T") -> 50.87 | M9: =RTD("cqg.rtd", ,"ContractData", B9, "HIgh",, "T") -> 51.27 | N9: =RTD("cqg.rtd", ,"ContractData",B9, "LOw",, "T") -> 50.83 | O9: =RTD("cqg.rtd", ,"ContractData",B9, "T_CVol",, "T") -> 3194660 | Q9: =IFERROR(O9/RTD("cqg.rtd",,"StudyData",B9, "MA", "InputChoice=Vol,MAType=Sim,Period=21", "MA","D","-1","all",,,,"T"),"") -> 0.0869834884
B10: S.XLY | C10: =RTD("cqg.rtd", ,"ContractData",B10, "LongDescription",, "T") -> Consumer Discretionary Select SectorSPDR | H10: =RTD("cqg.rtd", ,"ContractData",B10, "LastTradeToday",, "T") -> 214.01 | I10: =RTD("cqg.rtd", ,"ContractData",B10, "NetLastTradeToday",, "T") -> -2.1 | J10: =IFERROR(RTD("cqg.rtd", ,"ContractData",B10, "PerCentNetLastTrade",, "T")/100,"") -> -0.009717273611 | K10: =IFERROR(I10/RTD("cqg.rtd",,"StudyData",B10, "ATR", "MaType=Sim,Period=10", "ATR","D","-1","ALL",,,"FALSE","T")/100,"") -> -0.005323193916 | L10: =RTD("cqg.rtd", ,"ContractData",B10, "OPen",, "T") -> 214.07 | M10: =RTD("cqg.rtd", ,"ContractData", B10, "HIgh",, "T") -> 214.65 | N10: =RTD("cqg.rtd", ,"ContractData",B10, "LOw",, "T") -> 213.4 | O10: =RTD("cqg.rtd", ,"ContractData",B10, "T_CVol",, "T") -> 506157 | Q10: =IFERROR(O10/RTD("cqg.rtd",,"StudyData",B10, "MA", "InputChoice=Vol,MAType=Sim,Period=21", "MA","D","-1","all",,,,"T"),"") -> 0.1441246501
B11: S.FXI | C11: =RTD("cqg.rtd", ,"ContractData",B11, "LongDescription",, "T") -> iShares China Large-Cap ETF | H11: =RTD("cqg.rtd", ,"ContractData",B11, "LastTradeToday",, "T") -> 35.73 | I11: =RTD("cqg.rtd", ,"ContractData",B11, "NetLastTradeToday",, "T") -> -0.58 | J11: =IFERROR(RTD("cqg.rtd", ,"ContractData",B11, "PerCentNetLastTrade",, "T")/100,"") -> -0.015973561 | K11: =IFERROR(I11/RTD("cqg.rtd",,"StudyData",B11, "ATR", "MaType=Sim,Period=10", "ATR","D","-1","ALL",,,"FALSE","T")/100,"") -> -0.008643815201 | L11: =RTD("cqg.rtd", ,"ContractData",B11, "OPen",, "T") -> 35.84 | M11: =RTD("cqg.rtd", ,"ContractData", B11, "HIgh",, "T") -> 35.88 | N11: =RTD("cqg.rtd", ,"ContractData",B11, "LOw",, "T") -> 35.72 | O11: =RTD("cqg.rtd", ,"ContractData",B11, "T_CVol",, "T") -> 5741579 | Q11: =IFERROR(O11/RTD("cqg.rtd",,"StudyData",B11, "MA", "InputChoice=Vol,MAType=Sim,Period=21", "MA","D","-1","all",,,,"T"),"") -> 0.1525428492
B12: IWF | C12: =RTD("cqg.rtd", ,"ContractData",B12, "LongDescription",, "T") -> iShares Russell 1000 Growth ETF | H12: =RTD("cqg.rtd", ,"ContractData",B12, "LastTradeToday",, "T") -> 396.96 | I12: =RTD("cqg.rtd", ,"ContractData",B12, "NetLastTradeToday",, "T") -> -2.66 | J12: =IFERROR(RTD("cqg.rtd", ,"ContractData",B12, "PerCentNetLastTrade",, "T")/100,"") -> -0.006656323507 | K12: =IFERROR(I12/RTD("cqg.rtd",,"StudyData",B12, "ATR", "MaType=Sim,Period=10", "ATR","D","-1","ALL",,,"FALSE","T")/100,"") -> -0.0038 | L12: =RTD("cqg.rtd", ,"ContractData",B12, "OPen",, "T") -> 397.69 | M12: =RTD("cqg.rtd", ,"ContractData", B12, "HIgh",, "T") -> 398.39 | N12: =RTD("cqg.rtd", ,"ContractData",B12, "LOw",, "T") -> 396.19 | O12: =RTD("cqg.rtd", ,"ContractData",B12, "T_CVol",, "T") -> 105677 | Q12: =IFERROR(O12/RTD("cqg.rtd",,"StudyData",B12, "MA", "InputChoice=Vol,MAType=Sim,Period=21", "MA","D","-1","all",,,,"T"),"") -> 0.0633738196
B13: IWO | C13: =RTD("cqg.rtd", ,"ContractData",B13, "LongDescription",, "T") -> iShares Russell 2000 Growth ETF | H13: =RTD("cqg.rtd", ,"ContractData",B13, "LastTradeToday",, "T") -> 269.55 | I13: =RTD("cqg.rtd", ,"ContractData",B13, "NetLastTradeToday",, "T") -> -1.56 | J13: =IFERROR(RTD("cqg.rtd", ,"ContractData",B13, "PerCentNetLastTrade",, "T")/100,"") -> -0.005754121943 | K13: =IFERROR(I13/RTD("cqg.rtd",,"StudyData",B13, "ATR", "MaType=Sim,Period=10", "ATR","D","-1","ALL",,,"FALSE","T")/100,"") -> -0.002962962963 | L13: =RTD("cqg.rtd", ,"ContractData",B13, "OPen",, "T") -> 270.15 | M13: =RTD("cqg.rtd", ,"ContractData", B13, "HIgh",, "T") -> 271.04 | N13: =RTD("cqg.rtd", ,"ContractData",B13, "LOw",, "T") -> 269.4 | O13: =RTD("cqg.rtd", ,"ContractData",B13, "T_CVol",, "T") -> 41397 | Q13: =IFERROR(O13/RTD("cqg.rtd",,"StudyData",B13, "MA", "InputChoice=Vol,MAType=Sim,Period=21", "MA","D","-1","all",,,,"T"),"") -> 0.09077455288
B14: EP | C14: =RTD("cqg.rtd", ,"ContractData",B14, "LongDescription",, "T") -> E-Mini S&P 500, Jun 25 | H14: =RTD("cqg.rtd", ,"ContractData",B14, "LastTradeToday",, "T") -> 5893.25 | I14: =RTD("cqg.rtd", ,"ContractData",B14, "NetLastTradeToday",, "T") -> -15 | J14: =IFERROR(RTD("cqg.rtd", ,"ContractData",B14, "PerCentNetLastTrade",, "T")/100,"") -> -0.00253871541 | K14: =IFERROR(I14/RTD("cqg.rtd",,"StudyData",B14, "ATR", "MaType=Sim,Period=10", "ATR","D","-1","ALL",,,"FALSE","T")/100,"") -> -0.00163621489 | L14: =RTD("cqg.rtd", ,"ContractData",B14, "OPen",, "T") -> 5904 | M14: =RTD("cqg.rtd", ,"ContractData", B14, "HIgh",, "T") -> 5904 | N14: =RTD("cqg.rtd", ,"ContractData",B14, "LOw",, "T") -> 5867 | O14: =RTD("cqg.rtd", ,"ContractData",B14, "T_CVol",, "T") -> 284613 | Q14: =IFERROR(O14/RTD("cqg.rtd",,"StudyData",B14, "MA", "InputChoice=Vol,MAType=Sim,Period=21", "MA","D","-1","all",,,,"T"),"") -> 0.2059915201
B15: XLE | C15: =RTD("cqg.rtd", ,"ContractData",B15, "LongDescription",, "T") -> Energy Select Sector SPDR | H15: =RTD("cqg.rtd", ,"ContractData",B15, "LastTradeToday",, "T") -> 84.34 | I15: =RTD("cqg.rtd", ,"ContractData",B15, "NetLastTradeToday",, "T") -> -0.91 | J15: =IFERROR(RTD("cqg.rtd", ,"ContractData",B15, "PerCentNetLastTrade",, "T")/100,"") -> -0.0106744868 | K15: =IFERROR(I15/RTD("cqg.rtd",,"StudyData",B15, "ATR", "MaType=Sim,Period=10", "ATR","D","-1","ALL",,,"FALSE","T")/100,"") -> -0.005132543711 | L15: =RTD("cqg.rtd", ,"ContractData",B15, "OPen",, "T") -> 84.17 | M15: =RTD("cqg.rtd", ,"ContractData", B15, "HIgh",, "T") -> 84.53 | N15: =RTD("cqg.rtd", ,"ContractData",B15, "LOw",, "T") -> 83.96 | O15: =RTD("cqg.rtd", ,"ContractData",B15, "T_CVol",, "T") -> 2970636 | Q15: =IFERROR(O15/RTD("cqg.rtd",,"StudyData",B15, "MA", "InputChoice=Vol,MAType=Sim,Period=21", "MA","D","-1","all",,,,"T"),"") -> 0.2137986748
B16: USO | C16: =RTD("cqg.rtd", ,"ContractData",B16, "LongDescription",, "T") -> United States Oil Fund | H16: =RTD("cqg.rtd", ,"ContractData",B16, "LastTradeToday",, "T") -> 67.56 | I16: =RTD("cqg.rtd", ,"ContractData",B16, "NetLastTradeToday",, "T") -> -1.17 | J16: =IFERROR(RTD("cqg.rtd", ,"ContractData",B16, "PerCentNetLastTrade",, "T")/100,"") -> -0.017023134 | K16: =IFERROR(I16/RTD("cqg.rtd",,"StudyData",B16, "ATR", "MaType=Sim,Period=10", "ATR","D","-1","ALL",,,"FALSE","T")/100,"") -> -0.00593306288 | L16: =RTD("cqg.rtd", ,"ContractData",B16, "OPen",, "T") -> 67.13 | M16: =RTD("cqg.rtd", ,"ContractData", B16, "HIgh",, "T") -> 67.79 | N16: =RTD("cqg.rtd", ,"ContractData",B16, "LOw",, "T") -> 66.87 | O16: =RTD("cqg.rtd", ,"ContractData",B16, "T_CVol",, "T") -> 1490583 | Q16: =IFERROR(O16/RTD("cqg.rtd",,"StudyData",B16, "MA", "InputChoice=Vol,MAType=Sim,Period=21", "MA","D","-1","all",,,,"T"),"") -> 0.2917870633
C17: Top 15 Description | H17: Last | I17: NC | J17: %NC | K17: NC/ATR | L17: Open | M17: High | N17: Low | O17: Volume | Q17: Ratio
A18: =TRIM(SMPO!O1) -> S.US.T | B18: News | C18: =IFERROR(RTD("cqg.rtd", ,"ContractData",A18, "LongDescription",, "T")&" ("&RIGHT(A18,LEN(A18)-5)&")","") -> AT&T Inc (T) | H18: =IFERROR(RTD("cqg.rtd", ,"ContractData",A18, "LastTradeToday",, "T"),"") -> 27.03 | I18: =IFERROR(RTD("cqg.rtd", ,"ContractData",A18, "NetLastTradeToday",, "T"),"") -> 0.59 | J18: =IFERROR(RTD("cqg.rtd", ,"ContractData",A18, "PerCentNetLastTrade",, "T")/100,"") -> 0.02231467474 | K18: =IFERROR(I18/RTD("cqg.rtd",,"StudyData",A18, "ATR", "MaType=Sim,Period=10", "ATR","D","-1","ALL",,,"FALSE","T")/100,"") -> 0.009577922078 | L18: =IFERROR(RTD("cqg.rtd", ,"ContractData",A18, "OPen",, "T"),"") -> 26.6 | M18: =IFERROR(RTD("cqg.rtd", ,"ContractData", A18, "HIgh",, "T"),"") -> 27.04 | N18: =IFERROR(RTD("cqg.rtd", ,"ContractData",A18, "LOw",, "T"),"") -> 26.59 | O18: =IFERROR(RTD("cqg.rtd", ,"ContractData",A18, "T_CVol",, "T"),"") -> 3361524 | Q18: =IFERROR(O18/RTD("cqg.rtd",,"StudyData",A18, "MA", "InputChoice=Vol,MAType=Sim,Period=21", "MA","D","-1","all",,,,"T"),"") -> 0.09579936487 | R18: =SMPO!R1 -> https://finance.yahoo.com/quote/T
A19: =TRIM(SMPO!O2) -> S.US.PM | B19: News | C19: =IFERROR(RTD("cqg.rtd", ,"ContractData",A19, "LongDescription",, "T")&" ("&RIGHT(A19,LEN(A19)-5)&")","") -> Philip Morris International (PM) | H19: =IFERROR(RTD("cqg.rtd", ,"ContractData",A19, "LastTradeToday",, "T"),"") -> 167.62 | I19: =IFERROR(RTD("cqg.rtd", ,"ContractData",A19, "NetLastTradeToday",, "T"),"") -> 3.59 | J19: =IFERROR(RTD("cqg.rtd", ,"ContractData",A19, "PerCentNetLastTrade",, "T")/100,"") -> 0.02188624032 | K19: =IFERROR(I19/RTD("cqg.rtd",,"StudyData",A19, "ATR", "MaType=Sim,Period=10", "ATR","D","-1","ALL",,,"FALSE","T")/100,"") -> 0.01097188264 | L19: =IFERROR(RTD("cqg.rtd", ,"ContractData",A19, "OPen",, "T"),"") -> 165.26 | M19: =IFERROR(RTD("cqg.rtd", ,"ContractData", A19, "HIgh",, "T"),"") -> 167.79 | N19: =IFERROR(RTD("cqg.rtd", ,"ContractData",A19, "LOw",, "T"),"") -> 164.95 | O19: =IFERROR(RTD("cqg.rtd", ,"ContractData",A19, "T_CVol",, "T"),"") -> 439179 | Q19: =IFERROR(O19/RTD("cqg.rtd",,"StudyData",A19, "MA", "InputChoice=Vol,MAType=Sim,Period=21", "MA","D","-1","all",,,,"T"),"") -> 0.06687841008 | R19: =SMPO!R2 -> https://finance.yahoo.com/quote/PM
A20: =TRIM(SMPO!O3) -> S.US.TMUS | B20: News | C20: =IFERROR(RTD("cqg.rtd", ,"ContractData",A20, "LongDescription",, "T")&" ("&RIGHT(A20,LEN(A20)-5)&")","") -> T-Mobile US, Inc. (TMUS) | H20: =IFERROR(RTD("cqg.rtd", ,"ContractData",A20, "LastTradeToday",, "T"),"") -> 240.35 | I20: =IFERROR(RTD("cqg.rtd", ,"ContractData",A20, "NetLastTradeToday",, "T"),"") -> 5.06 | J20: =IFERROR(RTD("cqg.rtd", ,"ContractData",A20, "PerCentNetLastTrade",, "T")/100,"") -> 0.02150537634 | K20: =IFERROR(I20/RTD("cqg.rtd",,"StudyData",A20, "ATR", "MaType=Sim,Period=10", "ATR","D","-1","ALL",,,"FALSE","T")/100,"") -> 0.01031600408 | L20: =IFERROR(RTD("cqg.rtd", ,"ContractData",A20, "OPen",, "T"),"") -> 237.12 | M20: =IFERROR(RTD("cqg.rtd", ,"ContractData", A20, "HIgh",, "T"),"") -> 240.41 | N20: =IFERROR(RTD("cqg.rtd", ,"ContractData",A20, "LOw",, "T"),"") -> 236.42 | O20: =IFERROR(RTD("cqg.rtd", ,"ContractData",A20, "T_CVol",, "T"),"") -> 454752 | Q20: =IFERROR(O20/RTD("cqg.rtd",,"StudyData",A20, "MA", "InputChoice=Vol,MAType=Sim,Period=21", "MA","D","-1","all",,,,"T"),"") -> 0.1032904065 | R20: =SMPO!R3 -> https://finance.yahoo.com/quote/TMUS
A21: =TRIM(SMPO!O4) -> S.US.ETR | B21: News | C21: =IFERROR(RTD("cqg.rtd", ,"ContractData",A21, "LongDescription",, "T")&" ("&RIGHT(A21,LEN(A21)-5)&")","") -> Entergy Corporation (ETR) | H21: =IFERROR(RTD("cqg.rtd", ,"ContractData",A21, "LastTradeToday",, "T"),"") -> 82.1 | I21: =IFERROR(RTD("cqg.rtd", ,"ContractData",A21, "NetLastTradeToday",, "T"),"") -> 1.59 | J21: =IFERROR(RTD("cqg.rtd", ,"ContractData",A21, "PerCentNetLastTrade",, "T")/100,"") -> 0.01974909949 | K21: =IFERROR(I21/RTD("cqg.rtd",,"StudyData",A21, "ATR", "MaType=Sim,Period=10", "ATR","D","-1","ALL",,,"FALSE","T")/100,"") -> 0.009665653495 | L21: =IFERROR(RTD("cqg.rtd", ,"ContractData",A21, "OPen",, "T"),"") -> 80.93 | M21: =IFERROR(RTD("cqg.rtd", ,"ContractData", A21, "HIgh",, "T"),"") -> 82.14 | N21: =IFERROR(RTD("cqg.rtd", ,"ContractData",A21, "LOw",, "T"),"") -> 80.82 | O21: =IFERROR(RTD("cqg.rtd", ,"ContractData",A21, "T_CVol",, "T"),"") -> 188503 | Q21: =IFERROR(O21/RTD("cqg.rtd",,"StudyData",A21, "MA", "InputChoice=Vol,MAType=Sim,Period=21", "MA","D","-1","all",,,,"T"),"") -> 0.05534454159 | R21: =SMPO!R4 -> https://finance.yahoo.com/quote/ETR
A22: =TRIM(SMPO!O5) -> S.US.EBAY | B22: News | C22: =IFERROR(RTD("cqg.rtd", ,"ContractData",A22, "LongDescription",, "T")&" ("&RIGHT(A22,LEN(A22)-5)&")","") -> eBay Inc (EBAY) | H22: =IFERROR(RTD("cqg.rtd", ,"ContractData",A22, "LastTradeToday",, "T"),"") -> 70.48 | I22: =IFERROR(RTD("cqg.rtd", ,"ContractData",A22, "NetLastTradeToday",, "T"),"") -> 1.33 | J22: =IFERROR(RTD("cqg.rtd", ,"ContractData",A22, "PerCentNetLastTrade",, "T")/100,"") -> 0.01923355025 | K22: =IFERROR(I22/RTD("cqg.rtd",,"StudyData",A22, "ATR", "MaType=Sim,Period=10", "ATR","D","-1","ALL",,,"FALSE","T")/100,"") -> 0.007014767932 | L22: =IFERROR(RTD("cqg.rtd", ,"ContractData",A22, "OPen",, "T"),"") -> 69.65 | M22: =IFERROR(RTD("cqg.rtd", ,"ContractData", A22, "HIgh",, "T"),"") -> 70.75 | N22: =IFERROR(RTD("cqg.rtd", ,"ContractData",A22, "LOw",, "T"),"") -> 69.41 | O22: =IFERROR(RTD("cqg.rtd", ,"ContractData",A22, "T_CVol",, "T"),"") -> 557034 | Q22: =IFERROR(O22/RTD("cqg.rtd",,"StudyData",A22, "MA", "InputChoice=Vol,MAType=Sim,Period=21", "MA","D","-1","all",,,,"T"),"") -> 0.09863311631 | R22: =SMPO!R5 -> https://finance.yahoo.com/quote/EBAY
A23: =TRIM(SMPO!O6) -> S.US.MO | B23: News | C23: =IFERROR(RTD("cqg.rtd", ,"ContractData",A23, "LongDescription",, "T")&" ("&RIGHT(A23,LEN(A23)-5)&")","") -> Altria Group Inc (MO) | H23: =IFERROR(RTD("cqg.rtd", ,"ContractData",A23, "LastTradeToday",, "T"),"") -> 57.37 | I23: =IFERROR(RTD("cqg.rtd", ,"ContractData",A23, "NetLastTradeToday",, "T"),"") -> 1.04 | J23: =IFERROR(RTD("cqg.rtd", ,"ContractData",A23, "PerCentNetLastTrade",, "T")/100,"") -> 0.01846263092 | K23: =IFERROR(I23/RTD("cqg.rtd",,"StudyData",A23, "ATR", "MaType=Sim,Period=10", "ATR","D","-1","ALL",,,"FALSE","T")/100,"") -> 0.01003861004 | L23: =IFERROR(RTD("cqg.rtd", ,"ContractData",A23, "OPen",, "T"),"") -> 56.65 | M23: =IFERROR(RTD("cqg.rtd", ,"ContractData", A23, "HIgh",, "T"),"") -> 57.39 | N23: =IFERROR(RTD("cqg.rtd", ,"ContractData",A23, "LOw",, "T"),"") -> 56.62 | O23: =IFERROR(RTD("cqg.rtd", ,"ContractData",A23, "T_CVol",, "T"),"") -> 859115 | Q23: =IFERROR(O23/RTD("cqg.rtd",,"StudyData",A23, "MA", "InputChoice=Vol,MAType=Sim,Period=21", "MA","D","-1","all",,,,"T"),"") -> 0.09762592322 | R23: =SMPO!R6 -> https://finance.yahoo.com/quote/MO
A24: =TRIM(SMPO!O7) -> S.US.NI | B24: News | C24: =IFERROR(RTD("cqg.rtd", ,"ContractData",A24, "LongDescription",, "T")&" ("&RIGHT(A24,LEN(A24)-5)&")","") -> NiSource Inc (NI) | H24: =IFERROR(RTD("cqg.rtd", ,"ContractData",A24, "LastTradeToday",, "T"),"") -> 38.55 | I24: =IFERROR(RTD("cqg.rtd", ,"ContractData",A24, "NetLastTradeToday",, "T"),"") -> 0.67 | J24: =IFERROR(RTD("cqg.rtd", ,"ContractData",A24, "PerCentNetLastTrade",, "T")/100,"") -> 0.017687434 | K24: =IFERROR(I24/RTD("cqg.rtd",,"StudyData",A24, "ATR", "MaType=Sim,Period=10", "ATR","D","-1","ALL",,,"FALSE","T")/100,"") -> 0.007427937916 | L24: =IFERROR(RTD("cqg.rtd", ,"ContractData",A24, "OPen",, "T"),"") -> 38.09 | M24: =IFERROR(RTD("cqg.rtd", ,"ContractData", A24, "HIgh",, "T"),"") -> 38.57 | N24: =IFERROR(RTD("cqg.rtd", ,"ContractData",A24, "LOw",, "T"),"") -> 38.09 | O24: =IFERROR(RTD("cqg.rtd", ,"ContractData",A24, "T_CVol",, "T"),"") -> 134166 | Q24: =IFERROR(O24/RTD("cqg.rtd",,"StudyData",A24, "MA", "InputChoice=Vol,MAType=Sim,Period=21", "MA","D","-1","all",,,,"T"),"") -> 0.02849294988 | R24: =SMPO!R7 -> https://finance.yahoo.com/quote/NI
A25: =TRIM(SMPO!O8) -> S.US.BRO | B25: News | C25: =IFERROR(RTD("cqg.rtd", ,"ContractData",A25, "LongDescription",, "T")&" ("&RIGHT(A25,LEN(A25)-5)&")","") -> BROWN AND BROWN INC (BRO) | H25: =IFERROR(RTD("cqg.rtd", ,"ContractData",A25, "LastTradeToday",, "T"),"") -> 110.18 | I25: =IFERROR(RTD("cqg.rtd", ,"ContractData",A25, "NetLastTradeToday",, "T"),"") -> 1.91 | J25: =IFERROR(RTD("cqg.rtd", ,"ContractData",A25, "PerCentNetLastTrade",, "T")/100,"") -> 0.01764108248 | K25: =IFERROR(I25/RTD("cqg.rtd",,"StudyData",A25, "ATR", "MaType=Sim,Period=10", "ATR","D","-1","ALL",,,"FALSE","T")/100,"") -> 0.009607645875 | L25: =IFERROR(RTD("cqg.rtd", ,"ContractData",A25, "OPen",, "T"),"") -> 108.78 | M25: =IFERROR(RTD("cqg.rtd", ,"ContractData", A25, "HIgh",, "T"),"") -> 110.33 | N25: =IFERROR(RTD("cqg.rtd", ,"ContractData",A25, "LOw",, "T"),"") -> 108.29 | O25: =IFERROR(RTD("cqg.rtd", ,"ContractData",A25, "T_CVol",, "T"),"") -> 372224 | Q25: =IFERROR(O25/RTD("cqg.rtd",,"StudyData",A25, "MA", "InputChoice=Vol,MAType=Sim,Period=21", "MA","D","-1","all",,,,"T"),"") -> 0.2056691857 | R25: =SMPO!R8 -> https://finance.yahoo.com/quote/BRO
A26: =TRIM(SMPO!O9) -> S.US.PPL | B26: News | C26: =IFERROR(RTD("cqg.rtd", ,"ContractData",A26, "LongDescription",, "T")&" ("&RIGHT(A26,LEN(A26)-5)&")","") -> PPL Corp (PPL) | H26: =IFERROR(RTD("cqg.rtd", ,"ContractData",A26, "LastTradeToday",, "T"),"") -> 34.06 | I26: =IFERROR(RTD("cqg.rtd", ,"ContractData",A26, "NetLastTradeToday",, "T"),"") -> 0.54 | J26: =IFERROR(RTD("cqg.rtd", ,"ContractData",A26, "PerCentNetLastTrade",, "T")/100,"") -> 0.0161097852 | K26: =IFERROR(I26/RTD("cqg.rtd",,"StudyData",A26, "ATR", "MaType=Sim,Period=10", "ATR","D","-1","ALL",,,"FALSE","T")/100,"") -> 0.008385093168 | L26: =IFERROR(RTD("cqg.rtd", ,"ContractData",A26, "OPen",, "T"),"") -> 33.79 | M26: =IFERROR(RTD("cqg.rtd", ,"ContractData", A26, "HIgh",, "T"),"") -> 34.1 | N26: =IFERROR(RTD("cqg.rtd", ,"ContractData",A26, "LOw",, "T"),"") -> 33.7 | O26: =IFERROR(RTD("cqg.rtd", ,"ContractData",A26, "T_CVol",, "T"),"") -> 389558 | Q26: =IFERROR(O26/RTD("cqg.rtd",,"StudyData",A26, "MA", "InputChoice=Vol,MAType=Sim,Period=21", "MA","D","-1","all",,,,"T"),"") -> 0.0633937772 | R26: =SMPO!R9 -> https://finance.yahoo.com/quote/PPL
A27: =TRIM(SMPO!O10) -> S.US.EVRG | B27: News | C27: =IFERROR(RTD("cqg.rtd", ,"ContractData",A27, "LongDescription",, "T")&" ("&RIGHT(A27,LEN(A27)-5)&")","") -> Evergy, Inc. (EVRG) | H27: =IFERROR(RTD("cqg.rtd", ,"ContractData",A27, "LastTradeToday",, "T"),"") -> 65.09 | I27: =IFERROR(RTD("cqg.rtd", ,"ContractData",A27, "NetLastTradeToday",, "T"),"") -> 1.03 | J27: =IFERROR(RTD("cqg.rtd", ,"ContractData",A27, "PerCentNetLastTrade",, "T")/100,"") -> 0.01607867624 | K27: =IFERROR(I27/RTD("cqg.rtd",,"StudyData",A27, "ATR", "MaType=Sim,Period=10", "ATR","D","-1","ALL",,,"FALSE","T")/100,"") -> 0.007579102281 | L27: =IFERROR(RTD("cqg.rtd", ,"ContractData",A27, "OPen",, "T"),"") -> 64.3 | M27: =IFERROR(RTD("cqg.rtd", ,"ContractData", A27, "HIgh",, "T"),"") -> 65.15 | N27: =IFERROR(RTD("cqg.rtd", ,"ContractData",A27, "LOw",, "T"),"") -> 64.22 | O27: =IFERROR(RTD("cqg.rtd", ,"ContractData",A27, "T_CVol",, "T"),"") -> 94390 | Q27: =IFERROR(O27/RTD("cqg.rtd",,"StudyData",A27, "MA", "InputChoice=Vol,MAType=Sim,Period=21", "MA","D","-1","all",,,,"T"),"") -> 0.03932599016 | R27: =SMPO!R10 -> https://finance.yahoo.com/quote/EVRG | S27: Bottom 15 Performing Companies
A28: =TRIM(SMPO!O11) -> S.US.RTX | B28: News | C28: =IFERROR(RTD("cqg.rtd", ,"ContractData",A28, "LongDescription",, "T")&" ("&RIGHT(A28,LEN(A28)-5)&")","") -> RTX Corporation (RTX) | H28: =IFERROR(RTD("cqg.rtd", ,"ContractData",A28, "LastTradeToday",, "T"),"") -> 132.86 | I28: =IFERROR(RTD("cqg.rtd", ,"ContractData",A28, "NetLastTradeToday",, "T"),"") -> 2.07 | J28: =IFERROR(RTD("cqg.rtd", ,"ContractData",A28, "PerCentNetLastTrade",, "T")/100,"") -> 0.01582689808 | K28: =IFERROR(I28/RTD("cqg.rtd",,"StudyData",A28, "ATR", "MaType=Sim,Period=10", "ATR","D","-1","ALL",,,"FALSE","T")/100,"") -> 0.008293269231 | L28: =IFERROR(RTD("cqg.rtd", ,"ContractData",A28, "OPen",, "T"),"") -> 131.94 | M28: =IFERROR(RTD("cqg.rtd", ,"ContractData", A28, "HIgh",, "T"),"") -> 132.87 | N28: =IFERROR(RTD("cqg.rtd", ,"ContractData",A28, "LOw",, "T"),"") -> 131.75 | O28: =IFERROR(RTD("cqg.rtd", ,"ContractData",A28, "T_CVol",, "T"),"") -> 389788 | Q28: =IFERROR(O28/RTD("cqg.rtd",,"StudyData",A28, "MA", "InputChoice=Vol,MAType=Sim,Period=21", "MA","D","-1","all",,,,"T"),"") -> 0.06806802062 | R28: =SMPO!R11 -> https://finance.yahoo.com/quote/RTX
A29: =TRIM(SMPO!O12) -> S.US.IBM | B29: News | C29: =IFERROR(RTD("cqg.rtd", ,"ContractData",A29, "LongDescription",, "T")&" ("&RIGHT(A29,LEN(A29)-5)&")","") -> International Business Machines (IBM) | H29: =IFERROR(RTD("cqg.rtd", ,"ContractData",A29, "LastTradeToday",, "T"),"") -> 261.83 | I29: =IFERROR(RTD("cqg.rtd", ,"ContractData",A29, "NetLastTradeToday",, "T"),"") -> 4.01 | J29: =IFERROR(RTD("cqg.rtd", ,"ContractData",A29, "PerCentNetLastTrade",, "T")/100,"") -> 0.01555348693 | K29: =IFERROR(I29/RTD("cqg.rtd",,"StudyData",A29, "ATR", "MaType=Sim,Period=10", "ATR","D","-1","ALL",,,"FALSE","T")/100,"") -> 0.007122557726 | L29: =IFERROR(RTD("cqg.rtd", ,"ContractData",A29, "OPen",, "T"),"") -> 259.01 | M29: =IFERROR(RTD("cqg.rtd", ,"ContractData", A29, "HIgh",, "T"),"") -> 262.01 | N29: =IFERROR(RTD("cqg.rtd", ,"ContractData",A29, "LOw",, "T"),"") -> 258.61 | O29: =IFERROR(RTD("cqg.rtd", ,"ContractData",A29, "T_CVol",, "T"),"") -> 303957 | Q29: =IFERROR(O29/RTD("cqg.rtd",,"StudyData",A29, "MA", "InputChoice=Vol,MAType=Sim,Period=21", "MA","D","-1","all",,,,"T"),"") -> 0.0631811012 | R29: =SMPO!R12 -> https://finance.yahoo.com/quote/IBM
A30: =TRIM(SMPO!O13) -> S.US.PEG | B30: News | C30: =IFERROR(RTD("cqg.rtd", ,"ContractData",A30, "LongDescription",, "T")&" ("&RIGHT(A30,LEN(A30)-5)&")","") -> Pub Svc Entrpr Grp Inc (PEG) | H30: =IFERROR(RTD("cqg.rtd", ,"ContractData",A30, "LastTradeToday",, "T"),"") -> 78.44 | I30: =IFERROR(RTD("cqg.rtd", ,"ContractData",A30, "NetLastTradeToday",, "T"),"") -> 1.15 | J30: =IFERROR(RTD("cqg.rtd", ,"ContractData",A30, "PerCentNetLastTrade",, "T")/100,"") -> 0.01487902704 | K30: =IFERROR(I30/RTD("cqg.rtd",,"StudyData",A30, "ATR", "MaType=Sim,Period=10", "ATR","D","-1","ALL",,,"FALSE","T")/100,"") -> 0.006816834618 | L30: =IFERROR(RTD("cqg.rtd", ,"ContractData",A30, "OPen",, "T"),"") -> 77.65 | M30: =IFERROR(RTD("cqg.rtd", ,"ContractData", A30, "HIgh",, "T"),"") -> 78.55 | N30: =IFERROR(RTD("cqg.rtd", ,"ContractData",A30, "LOw",, "T"),"") -> 77.57 | O30: =IFERROR(RTD("cqg.rtd", ,"ContractData",A30, "T_CVol",, "T"),"") -> 98909 | Q30: =IFERROR(O30/RTD("cqg.rtd",,"StudyData",A30, "MA", "InputChoice=Vol,MAType=Sim,Period=21", "MA","D","-1","all",,,,"T"),"") -> 0.03477973433 | R30: =SMPO!R13 -> https://finance.yahoo.com/quote/PEG
A31: =TRIM(SMPO!O14) -> S.US.ATO | B31: News | C31: =IFERROR(RTD("cqg.rtd", ,"ContractData",A31, "LongDescription",, "T")&" ("&RIGHT(A31,LEN(A31)-5)&")","") -> Atmos Energy Corp (ATO) | H31: =IFERROR(RTD("cqg.rtd", ,"ContractData",A31, "LastTradeToday",, "T"),"") -> 154.36 | I31: =IFERROR(RTD("cqg.rtd", ,"ContractData",A31, "NetLastTradeToday",, "T"),"") -> 2.11 | J31: =IFERROR(RTD("cqg.rtd", ,"ContractData",A31, "PerCentNetLastTrade",, "T")/100,"") -> 0.01385878489 | K31: =IFERROR(I31/RTD("cqg.rtd",,"StudyData",A31, "ATR", "MaType=Sim,Period=10", "ATR","D","-1","ALL",,,"FALSE","T")/100,"") -> 0.006336336336 | L31: =IFERROR(RTD("cqg.rtd", ,"ContractData",A31, "OPen",, "T"),"") -> 153.64 | M31: =IFERROR(RTD("cqg.rtd", ,"ContractData", A31, "HIgh",, "T"),"") -> 154.52 | N31: =IFERROR(RTD("cqg.rtd", ,"ContractData",A31, "LOw",, "T"),"") -> 152.43 | O31: =IFERROR(RTD("cqg.rtd", ,"ContractData",A31, "T_CVol",, "T"),"") -> 45471 | Q31: =IFERROR(O31/RTD("cqg.rtd",,"StudyData",A31, "MA", "InputChoice=Vol,MAType=Sim,Period=21", "MA","D","-1","all",,,,"T"),"") -> 0.03502707921 | R31: =SMPO!R14 -> https://finance.yahoo.com/quote/ATO
A32: =TRIM(SMPO!O15) -> S.US.AEE | B32: News | C32: =IFERROR(RTD("cqg.rtd", ,"ContractData",A32, "LongDescription",, "T")&" ("&RIGHT(A32,LEN(A32)-5)&")","") -> Ameren Corp (AEE) | H32: =IFERROR(RTD("cqg.rtd", ,"ContractData",A32, "LastTradeToday",, "T"),"") -> 96.32 | I32: =IFERROR(RTD("cqg.rtd", ,"ContractData",A32, "NetLastTradeToday",, "T"),"") -> 1.31 | J32: =IFERROR(RTD("cqg.rtd", ,"ContractData",A32, "PerCentNetLastTrade",, "T")/100,"") -> 0.01378802231 | K32: =IFERROR(I32/RTD("cqg.rtd",,"StudyData",A32, "ATR", "MaType=Sim,Period=10", "ATR","D","-1","ALL",,,"FALSE","T")/100,"") -> 0.007338935574 | L32: =IFERROR(RTD("cqg.rtd", ,"ContractData",A32, "OPen",, "T"),"") -> 95.78 | M32: =IFERROR(RTD("cqg.rtd", ,"ContractData", A32, "HIgh",, "T"),"") -> 96.32 | N32: =IFERROR(RTD("cqg.rtd", ,"ContractData",A32, "LOw",, "T"),"") -> 95.38 | O32: =IFERROR(RTD("cqg.rtd", ,"ContractData",A32, "T_CVol",, "T"),"") -> 107835 | Q32: =IFERROR(O32/RTD("cqg.rtd",,"StudyData",A32, "MA", "InputChoice=Vol,MAType=Sim,Period=21", "MA","D","-1","all",,,,"T"),"") -> 0.0656284462 | R32: =SMPO!R15 -> https://finance.yahoo.com/quote/AEE
C33: Bottom 15 Description | H33: Last | I33: NC | J33: %NC | K33: NC/ATR | L33: Open | M33: High | N33: Low | O33: Volume | Q33: Ratio
A34: =TRIM(SMPO!AC1) -> S.US.WMT | B34: News | C34: =IFERROR(RTD("cqg.rtd", ,"ContractData",A34, "LongDescription",, "T")&" ("&RIGHT(A34,LEN(A34)-5)&")","") -> Walmart Inc. (WMT) | H34: =IFERROR(RTD("cqg.rtd", ,"ContractData",A34, "LastTradeToday",, "T"),"") -> 93.34 | I34: =IFERROR(RTD("cqg.rtd", ,"ContractData",A34, "NetLastTradeToday",, "T"),"") -> -3.49 | J34: =IFERROR(RTD("cqg.rtd", ,"ContractData",A34, "PerCentNetLastTrade",, "T")/100,"") -> -0.0360425488 | K34: =IFERROR(I34/RTD("cqg.rtd",,"StudyData",A34, "ATR", "MaType=Sim,Period=10", "ATR","D","-1","ALL",,,"FALSE","T")/100,"") -> -0.02269180754 | L34: =IFERROR(RTD("cqg.rtd", ,"ContractData",A34, "OPen",, "T"),"") -> 94.3 | M34: =IFERROR(RTD("cqg.rtd", ,"ContractData", A34, "HIgh",, "T"),"") -> 94.46 | N34: =IFERROR(RTD("cqg.rtd", ,"ContractData",A34, "LOw",, "T"),"") -> 91.89 | O34: =IFERROR(RTD("cqg.rtd", ,"ContractData",A34, "T_CVol",, "T"),"") -> 11332969 | Q34: =IFERROR(O34/RTD("cqg.rtd",,"StudyData",A34, "MA", "InputChoice=Vol,MAType=Sim,Period=21", "MA","D","-1","all",,,,"T"),"") -> 0.6662181671 | R34: =SMPO!AH1 -> https://finance.yahoo.com/quote/WMT
A35: =TRIM(SMPO!AC2) -> S.US.TPL | B35: News | C35: =IFERROR(RTD("cqg.rtd", ,"ContractData",A35, "LongDescription",, "T")&" ("&RIGHT(A35,LEN(A35)-5)&")","") -> TEXAS PACIFIC LAND TR (TPL) | H35: =IFERROR(RTD("cqg.rtd", ,"ContractData",A35, "LastTradeToday",, "T"),"") -> 1360 | I35: =IFERROR(RTD("cqg.rtd", ,"ContractData",A35, "NetLastTradeToday",, "T"),"") -> -45.92 | J35: =IFERROR(RTD("cqg.rtd", ,"ContractData",A35, "PerCentNetLastTrade",, "T")/100,"") -> -0.03266188688 | K35: =IFERROR(I35/RTD("cqg.rtd",,"StudyData",A35, "ATR", "MaType=Sim,Period=10", "ATR","D","-1","ALL",,,"FALSE","T")/100,"") -> -0.008268361633 | L35: =IFERROR(RTD("cqg.rtd", ,"ContractData",A35, "OPen",, "T"),"") -> 1381.84 | M35: =IFERROR(RTD("cqg.rtd", ,"ContractData", A35, "HIgh",, "T"),"") -> 1381.84 | N35: =IFERROR(RTD("cqg.rtd", ,"ContractData",A35, "LOw",, "T"),"") -> 1349.71 | O35: =IFERROR(RTD("cqg.rtd", ,"ContractData",A35, "T_CVol",, "T"),"") -> 6436 | Q35: =IFERROR(O35/RTD("cqg.rtd",,"StudyData",A35, "MA", "InputChoice=Vol,MAType=Sim,Period=21", "MA","D","-1","all",,,,"T"),"") -> 0.06532718452 | R35: =SMPO!AH2 -> https://finance.yahoo.com/quote/TPL
A36: =TRIM(SMPO!AC3) -> S.US.TSLA | B36: News | C36: =IFERROR(RTD("cqg.rtd", ,"ContractData",A36, "LongDescription",, "T")&" ("&RIGHT(A36,LEN(A36)-5)&")","") -> Tesla Inc. (TSLA) | H36: =IFERROR(RTD("cqg.rtd", ,"ContractData",A36, "LastTradeToday",, "T"),"") -> 336.86 | I36: =IFERROR(RTD("cqg.rtd", ,"ContractData",A36, "NetLastTradeToday",, "T"),"") -> -10.82 | J36: =IFERROR(RTD("cqg.rtd", ,"ContractData",A36, "PerCentNetLastTrade",, "T")/100,"") -> -0.03112057064 | K36: =IFERROR(I36/RTD("cqg.rtd",,"StudyData",A36, "ATR", "MaType=Sim,Period=10", "ATR","D","-1","ALL",,,"FALSE","T")/100,"") -> -0.007159872949 | L36: =IFERROR(RTD("cqg.rtd", ,"ContractData",A36, "OPen",, "T"),"") -> 340.34 | M36: =IFERROR(RTD("cqg.rtd", ,"ContractData", A36, "HIgh",, "T"),"") -> 342.25 | N36: =IFERROR(RTD("cqg.rtd", ,"ContractData",A36, "LOw",, "T"),"") -> 336.7 | O36: =IFERROR(RTD("cqg.rtd", ,"ContractData",A36, "T_CVol",, "T"),"") -> 21480458 | Q36: =IFERROR(O36/RTD("cqg.rtd",,"StudyData",A36, "MA", "InputChoice=Vol,MAType=Sim,Period=21", "MA","D","-1","all",,,,"T"),"") -> 0.1903263479 | R36: =SMPO!AH3 -> https://finance.yahoo.com/quote/TSLA
A37: =TRIM(SMPO!AC4) -> S.US.ANET | B37: News | C37: =IFERROR(RTD("cqg.rtd", ,"ContractData",A37, "LongDescription",, "T")&" ("&RIGHT(A37,LEN(A37)-5)&")","") -> Arista Networks, Inc. (ANET) | H37: =IFERROR(RTD("cqg.rtd", ,"ContractData",A37, "LastTradeToday",, "T"),"") -> 95.23 | I37: =IFERROR(RTD("cqg.rtd", ,"ContractData",A37, "NetLastTradeToday",, "T"),"") -> -2.99 | J37: =IFERROR(RTD("cqg.rtd", ,"ContractData",A37, "PerCentNetLastTrade",, "T")/100,"") -> -0.0304418652 | K37: =IFERROR(I37/RTD("cqg.rtd",,"StudyData",A37, "ATR", "MaType=Sim,Period=10", "ATR","D","-1","ALL",,,"FALSE","T")/100,"") -> -0.006391620351 | L37: =IFERROR(RTD("cqg.rtd", ,"ContractData",A37, "OPen",, "T"),"") -> 95.34 | M37: =IFERROR(RTD("cqg.rtd", ,"ContractData", A37, "HIgh",, "T"),"") -> 96.29 | N37: =IFERROR(RTD("cqg.rtd", ,"ContractData",A37, "LOw",, "T"),"") -> 94.63 | O37: =IFERROR(RTD("cqg.rtd", ,"ContractData",A37, "T_CVol",, "T"),"") -> 1243040 | Q37: =IFERROR(O37/RTD("cqg.rtd",,"StudyData",A37, "MA", "InputChoice=Vol,MAType=Sim,Period=21", "MA","D","-1","all",,,,"T"),"") -> 0.113312396 | R37: =SMPO!AH4 -> https://finance.yahoo.com/quote/ANET
A38: =TRIM(SMPO!AC5) -> S.US.KKR | B38: News | C38: =IFERROR(RTD("cqg.rtd", ,"ContractData",A38, "LongDescription",, "T")&" ("&RIGHT(A38,LEN(A38)-5)&")","") -> KKR & Co. Inc. (KKR) | H38: =IFERROR(RTD("cqg.rtd", ,"ContractData",A38, "LastTradeToday",, "T"),"") -> 125.51 | I38: =IFERROR(RTD("cqg.rtd", ,"ContractData",A38, "NetLastTradeToday",, "T"),"") -> -3.52 | J38: =IFERROR(RTD("cqg.rtd", ,"ContractData",A38, "PerCentNetLastTrade",, "T")/100,"") -> -0.02728047741 | K38: =IFERROR(I38/RTD("cqg.rtd",,"StudyData",A38, "ATR", "MaType=Sim,Period=10", "ATR","D","-1","ALL",,,"FALSE","T")/100,"") -> -0.008034695275 | L38: =IFERROR(RTD("cqg.rtd", ,"ContractData",A38, "OPen",, "T"),"") -> 126.93 | M38: =IFERROR(RTD("cqg.rtd", ,"ContractData", A38, "HIgh",, "T"),"") -> 128.03 | N38: =IFERROR(RTD("cqg.rtd", ,"ContractData",A38, "LOw",, "T"),"") -> 125.21 | O38: =IFERROR(RTD("cqg.rtd", ,"ContractData",A38, "T_CVol",, "T"),"") -> 471517 | Q38: =IFERROR(O38/RTD("cqg.rtd",,"StudyData",A38, "MA", "InputChoice=Vol,MAType=Sim,Period=21", "MA","D","-1","all",,,,"T"),"") -> 0.09503969971 | R38: =SMPO!AH5 -> https://finance.yahoo.com/quote/KKR
A39: =TRIM(SMPO!AC6) -> S.US.AMZN | B39: News | C39: =IFERROR(RTD("cqg.rtd", ,"ContractData",A39, "LongDescription",, "T")&" ("&RIGHT(A39,LEN(A39)-5)&")","") -> Amazon.com Inc (AMZN) | H39: =IFERROR(RTD("cqg.rtd", ,"ContractData",A39, "LastTradeToday",, "T"),"") -> 204.93 | I39: =IFERROR(RTD("cqg.rtd", ,"ContractData",A39, "NetLastTradeToday",, "T"),"") -> -5.32 | J39: =IFERROR(RTD("cqg.rtd", ,"ContractData",A39, "PerCentNetLastTrade",, "T")/100,"") -> -0.02530321046 | K39: =IFERROR(I39/RTD("cqg.rtd",,"StudyData",A39, "ATR", "MaType=Sim,Period=10", "ATR","D","-1","ALL",,,"FALSE","T")/100,"") -> -0.008134556575 | L39: =IFERROR(RTD("cqg.rtd", ,"ContractData",A39, "OPen",, "T"),"") -> 206.45 | M39: =IFERROR(RTD("cqg.rtd", ,"ContractData", A39, "HIgh",, "T"),"") -> 206.88 | N39: =IFERROR(RTD("cqg.rtd", ,"ContractData",A39, "LOw",, "T"),"") -> 203.5 | O39: =IFERROR(RTD("cqg.rtd", ,"ContractData",A39, "T_CVol",, "T"),"") -> 10336201 | Q39: =IFERROR(O39/RTD("cqg.rtd",,"StudyData",A39, "MA", "InputChoice=Vol,MAType=Sim,Period=21", "MA","D","-1","all",,,,"T"),"") -> 0.2128052327 | R39: =SMPO!AH6 -> https://finance.yahoo.com/quote/AMZN
A40: =TRIM(SMPO!AC7) -> S.US.PLTR | B40: News | C40: =IFERROR(RTD("cqg.rtd", ,"ContractData",A40, "LongDescription",, "T")&" ("&RIGHT(A40,LEN(A40)-5)&")","") -> Palantir Technologies Inc. (PLTR) | H40: =IFERROR(RTD("cqg.rtd", ,"ContractData",A40, "LastTradeToday",, "T"),"") -> 127.63 | I40: =IFERROR(RTD("cqg.rtd", ,"ContractData",A40, "NetLastTradeToday",, "T"),"") -> -2.55 | J40: =IFERROR(RTD("cqg.rtd", ,"ContractData",A40, "PerCentNetLastTrade",, "T")/100,"") -> -0.01958826241 | K40: =IFERROR(I40/RTD("cqg.rtd",,"StudyData",A40, "ATR", "MaType=Sim,Period=10", "ATR","D","-1","ALL",,,"FALSE","T")/100,"") -> -0.003279320988 | L40: =IFERROR(RTD("cqg.rtd", ,"ContractData",A40, "OPen",, "T"),"") -> 128.37 | M40: =IFERROR(RTD("cqg.rtd", ,"ContractData", A40, "HIgh",, "T"),"") -> 130.19 | N40: =IFERROR(RTD("cqg.rtd", ,"ContractData",A40, "LOw",, "T"),"") -> 127.39 | O40: =IFERROR(RTD("cqg.rtd", ,"ContractData",A40, "T_CVol",, "T"),"") -> 14030579 | Q40: =IFERROR(O40/RTD("cqg.rtd",,"StudyData",A40, "MA", "InputChoice=Vol,MAType=Sim,Period=21", "MA","D","-1","all",,,,"T"),"") -> 0.1285307253 | R40: =SMPO!AH7 -> https://finance.yahoo.com/quote/PLTR
A41: =TRIM(SMPO!AC8) -> S.US.ISRG | B41: News | C41: =IFERROR(RTD("cqg.rtd", ,"ContractData",A41, "LongDescription",, "T")&" ("&RIGHT(A41,LEN(A41)-5)&")","") -> Intuitive Surgical Inc (ISRG) | H41: =IFERROR(RTD("cqg.rtd", ,"ContractData",A41, "LastTradeToday",, "T"),"") -> 555.17 | I41: =IFERROR(RTD("cqg.rtd", ,"ContractData",A41, "NetLastTradeToday",, "T"),"") -> -10.77 | J41: =IFERROR(RTD("cqg.rtd", ,"ContractData",A41, "PerCentNetLastTrade",, "T")/100,"") -> -0.0190302859 | K41: =IFERROR(I41/RTD("cqg.rtd",,"StudyData",A41, "ATR", "MaType=Sim,Period=10", "ATR","D","-1","ALL",,,"FALSE","T")/100,"") -> -0.008677785835 | L41: =IFERROR(RTD("cqg.rtd", ,"ContractData",A41, "OPen",, "T"),"") -> 559.32 | M41: =IFERROR(RTD("cqg.rtd", ,"ContractData", A41, "HIgh",, "T"),"") -> 562.41 | N41: =IFERROR(RTD("cqg.rtd", ,"ContractData",A41, "LOw",, "T"),"") -> 549.55 | O41: =IFERROR(RTD("cqg.rtd", ,"ContractData",A41, "T_CVol",, "T"),"") -> 375241 | Q41: =IFERROR(O41/RTD("cqg.rtd",,"StudyData",A41, "MA", "InputChoice=Vol,MAType=Sim,Period=21", "MA","D","-1","all",,,,"T"),"") -> 0.2081752867 | R41: =SMPO!AH8 -> https://finance.yahoo.com/quote/ISRG
A42: =TRIM(SMPO!AC9) -> S.US.BKR | B42: News | C42: =IFERROR(RTD("cqg.rtd", ,"ContractData",A42, "LongDescription",, "T")&" ("&RIGHT(A42,LEN(A42)-5)&")","") -> Baker Hughes Company (BKR) | H42: =IFERROR(RTD("cqg.rtd", ,"ContractData",A42, "LastTradeToday",, "T"),"") -> 37.13 | I42: =IFERROR(RTD("cqg.rtd", ,"ContractData",A42, "NetLastTradeToday",, "T"),"") -> -0.71 | J42: =IFERROR(RTD("cqg.rtd", ,"ContractData",A42, "PerCentNetLastTrade",, "T")/100,"") -> -0.01876321353 | K42: =IFERROR(I42/RTD("cqg.rtd",,"StudyData",A42, "ATR", "MaType=Sim,Period=10", "ATR","D","-1","ALL",,,"FALSE","T")/100,"") -> -0.007186234818 | L42: =IFERROR(RTD("cqg.rtd", ,"ContractData",A42, "OPen",, "T"),"") -> 37.36 | M42: =IFERROR(RTD("cqg.rtd", ,"ContractData", A42, "HIgh",, "T"),"") -> 37.38 | N42: =IFERROR(RTD("cqg.rtd", ,"ContractData",A42, "LOw",, "T"),"") -> 37.02 | O42: =IFERROR(RTD("cqg.rtd", ,"ContractData",A42, "T_CVol",, "T"),"") -> 587917 | Q42: =IFERROR(O42/RTD("cqg.rtd",,"StudyData",A42, "MA", "InputChoice=Vol,MAType=Sim,Period=21", "MA","D","-1","all",,,,"T"),"") -> 0.07181170769 | R42: =SMPO!AH9 -> https://finance.yahoo.com/quote/BKR
A43: =TRIM(SMPO!AC10) -> S.US.UAL | B43: News | C43: =IFERROR(RTD("cqg.rtd", ,"ContractData",A43, "LongDescription",, "T")&" ("&RIGHT(A43,LEN(A43)-5)&")","") -> UAL Continental Holdings, Inc. (UAL) | H43: =IFERROR(RTD("cqg.rtd", ,"ContractData",A43, "LastTradeToday",, "T"),"") -> 77.67 | I43: =IFERROR(RTD("cqg.rtd", ,"ContractData",A43, "NetLastTradeToday",, "T"),"") -> -1.32 | J43: =IFERROR(RTD("cqg.rtd", ,"ContractData",A43, "PerCentNetLastTrade",, "T")/100,"") -> -0.01671097607 | K43: =IFERROR(I43/RTD("cqg.rtd",,"StudyData",A43, "ATR", "MaType=Sim,Period=10", "ATR","D","-1","ALL",,,"FALSE","T")/100,"") -> -0.002945771033 | L43: =IFERROR(RTD("cqg.rtd", ,"ContractData",A43, "OPen",, "T"),"") -> 78.94 | M43: =IFERROR(RTD("cqg.rtd", ,"ContractData", A43, "HIgh",, "T"),"") -> 79.09 | N43: =IFERROR(RTD("cqg.rtd", ,"ContractData",A43, "LOw",, "T"),"") -> 77.45 | O43: =IFERROR(RTD("cqg.rtd", ,"ContractData",A43, "T_CVol",, "T"),"") -> 712537 | Q43: =IFERROR(O43/RTD("cqg.rtd",,"StudyData",A43, "MA", "InputChoice=Vol,MAType=Sim,Period=21", "MA","D","-1","all",,,,"T"),"") -> 0.08120805984 | R43: =SMPO!AH10 -> https://finance.yahoo.com/quote/UAL
A44: =TRIM(SMPO!AC11) -> S.US.TRGP | B44: News | C44: =IFERROR(RTD("cqg.rtd", ,"ContractData",A44, "LongDescription",, "T")&" ("&RIGHT(A44,LEN(A44)-5)&")","") -> Targa Resources Corp (TRGP) | H44: =IFERROR(RTD("cqg.rtd", ,"ContractData",A44, "LastTradeToday",, "T"),"") -> 165.9 | I44: =IFERROR(RTD("cqg.rtd", ,"ContractData",A44, "NetLastTradeToday",, "T"),"") -> -2.68 | J44: =IFERROR(RTD("cqg.rtd", ,"ContractData",A44, "PerCentNetLastTrade",, "T")/100,"") -> -0.01589749674 | K44: =IFERROR(I44/RTD("cqg.rtd",,"StudyData",A44, "ATR", "MaType=Sim,Period=10", "ATR","D","-1","ALL",,,"FALSE","T")/100,"") -> -0.004298315958 | L44: =IFERROR(RTD("cqg.rtd", ,"ContractData",A44, "OPen",, "T"),"") -> 164.81 | M44: =IFERROR(RTD("cqg.rtd", ,"ContractData", A44, "HIgh",, "T"),"") -> 166.36 | N44: =IFERROR(RTD("cqg.rtd", ,"ContractData",A44, "LOw",, "T"),"") -> 164.22 | O44: =IFERROR(RTD("cqg.rtd", ,"ContractData",A44, "T_CVol",, "T"),"") -> 392675 | Q44: =IFERROR(O44/RTD("cqg.rtd",,"StudyData",A44, "MA", "InputChoice=Vol,MAType=Sim,Period=21", "MA","D","-1","all",,,,"T"),"") -> 0.1734764766 | R44: =SMPO!AH11 -> https://finance.yahoo.com/quote/TRGP
A45: =TRIM(SMPO!AC12) -> S.US.VST | B45: News | C45: =IFERROR(RTD("cqg.rtd", ,"ContractData",A45, "LongDescription",, "T")&" ("&RIGHT(A45,LEN(A45)-5)&")","") -> Vistra Corp. (VST) | H45: =IFERROR(RTD("cqg.rtd", ,"ContractData",A45, "LastTradeToday",, "T"),"") -> 152.27 | I45: =IFERROR(RTD("cqg.rtd", ,"ContractData",A45, "NetLastTradeToday",, "T"),"") -> -2.45 | J45: =IFERROR(RTD("cqg.rtd", ,"ContractData",A45, "PerCentNetLastTrade",, "T")/100,"") -> -0.01583505688 | K45: =IFERROR(I45/RTD("cqg.rtd",,"StudyData",A45, "ATR", "MaType=Sim,Period=10", "ATR","D","-1","ALL",,,"FALSE","T")/100,"") -> -0.002956437794 | L45: =IFERROR(RTD("cqg.rtd", ,"ContractData",A45, "OPen",, "T"),"") -> 151 | M45: =IFERROR(RTD("cqg.rtd", ,"ContractData", A45, "HIgh",, "T"),"") -> 153.59 | N45: =IFERROR(RTD("cqg.rtd", ,"ContractData",A45, "LOw",, "T"),"") -> 150.84 | O45: =IFERROR(RTD("cqg.rtd", ,"ContractData",A45, "T_CVol",, "T"),"") -> 588284 | Q45: =IFERROR(O45/RTD("cqg.rtd",,"StudyData",A45, "MA", "InputChoice=Vol,MAType=Sim,Period=21", "MA","D","-1","all",,,,"T"),"") -> 0.08993287555 | R45: =SMPO!AH12 -> https://finance.yahoo.com/quote/VST
A46: =TRIM(SMPO!AC13) -> S.US.OKE | B46: News | C46: =IFERROR(RTD("cqg.rtd", ,"ContractData",A46, "LongDescription",, "T")&" ("&RIGHT(A46,LEN(A46)-5)&")","") -> ONEOK Inc New (OKE) | H46: =IFERROR(RTD("cqg.rtd", ,"ContractData",A46, "LastTradeToday",, "T"),"") -> 85.28 | I46: =IFERROR(RTD("cqg.rtd", ,"ContractData",A46, "NetLastTradeToday",, "T"),"") -> -1.33 | J46: =IFERROR(RTD("cqg.rtd", ,"ContractData",A46, "PerCentNetLastTrade",, "T")/100,"") -> -0.01535619443 | K46: =IFERROR(I46/RTD("cqg.rtd",,"StudyData",A46, "ATR", "MaType=Sim,Period=10", "ATR","D","-1","ALL",,,"FALSE","T")/100,"") -> -0.00521978022 | L46: =IFERROR(RTD("cqg.rtd", ,"ContractData",A46, "OPen",, "T"),"") -> 85.25 | M46: =IFERROR(RTD("cqg.rtd", ,"ContractData", A46, "HIgh",, "T"),"") -> 86.04 | N46: =IFERROR(RTD("cqg.rtd", ,"ContractData",A46, "LOw",, "T"),"") -> 85.16 | O46: =IFERROR(RTD("cqg.rtd", ,"ContractData",A46, "T_CVol",, "T"),"") -> 510241 | Q46: =IFERROR(O46/RTD("cqg.rtd",,"StudyData",A46, "MA", "InputChoice=Vol,MAType=Sim,Period=21", "MA","D","-1","all",,,,"T"),"") -> 0.1368167239 | R46: =SMPO!AH13 -> https://finance.yahoo.com/quote/OKE
A47: =TRIM(SMPO!AC14) -> S.US.NVDA | B47: News | C47: =IFERROR(RTD("cqg.rtd", ,"ContractData",A47, "LongDescription",, "T")&" ("&RIGHT(A47,LEN(A47)-5)&")","") -> NVIDIA Corp (NVDA) | H47: =IFERROR(RTD("cqg.rtd", ,"ContractData",A47, "LastTradeToday",, "T"),"") -> 133.31 | I47: =IFERROR(RTD("cqg.rtd", ,"ContractData",A47, "NetLastTradeToday",, "T"),"") -> -2.03 | J47: =IFERROR(RTD("cqg.rtd", ,"ContractData",A47, "PerCentNetLastTrade",, "T")/100,"") -> -0.01499926112 | K47: =IFERROR(I47/RTD("cqg.rtd",,"StudyData",A47, "ATR", "MaType=Sim,Period=10", "ATR","D","-1","ALL",,,"FALSE","T")/100,"") -> -0.00431547619 | L47: =IFERROR(RTD("cqg.rtd", ,"ContractData",A47, "OPen",, "T"),"") -> 134.29 | M47: =IFERROR(RTD("cqg.rtd", ,"ContractData", A47, "HIgh",, "T"),"") -> 134.72 | N47: =IFERROR(RTD("cqg.rtd", ,"ContractData",A47, "LOw",, "T"),"") -> 132.66 | O47: =IFERROR(RTD("cqg.rtd", ,"ContractData",A47, "T_CVol",, "T"),"") -> 44235568 | Q47: =IFERROR(O47/RTD("cqg.rtd",,"StudyData",A47, "MA", "InputChoice=Vol,MAType=Sim,Period=21", "MA","D","-1","all",,,,"T"),"") -> 0.1905736318 | R47: =SMPO!AH14 -> https://finance.yahoo.com/quote/NVDA
A48: =TRIM(SMPO!AC15) -> S.US.SYF | B48: News | C48: =IFERROR(RTD("cqg.rtd", ,"ContractData",A48, "LongDescription",, "T")&" ("&RIGHT(A48,LEN(A48)-5)&")","") -> Synchrony Financial (SYF) | H48: =IFERROR(RTD("cqg.rtd", ,"ContractData",A48, "LastTradeToday",, "T"),"") -> 60.29 | I48: =IFERROR(RTD("cqg.rtd", ,"ContractData",A48, "NetLastTradeToday",, "T"),"") -> -0.81 | J48: =IFERROR(RTD("cqg.rtd", ,"ContractData",A48, "PerCentNetLastTrade",, "T")/100,"") -> -0.01325695581 | K48: =IFERROR(I48/RTD("cqg.rtd",,"StudyData",A48, "ATR", "MaType=Sim,Period=10", "ATR","D","-1","ALL",,,"FALSE","T")/100,"") -> -0.004495005549 | L48: =IFERROR(RTD("cqg.rtd", ,"ContractData",A48, "OPen",, "T"),"") -> 60.61 | M48: =IFERROR(RTD("cqg.rtd", ,"ContractData", A48, "HIgh",, "T"),"") -> 60.84 | N48: =IFERROR(RTD("cqg.rtd", ,"ContractData",A48, "LOw",, "T"),"") -> 60.13 | O48: =IFERROR(RTD("cqg.rtd", ,"ContractData",A48, "T_CVol",, "T"),"") -> 352993 | Q48: =IFERROR(O48/RTD("cqg.rtd",,"StudyData",A48, "MA", "InputChoice=Vol,MAType=Sim,Period=21", "MA","D","-1","all",,,,"T"),"") -> 0.08098819532 | R48: =SMPO!AH15 -> https://finance.yahoo.com/quote/SYF
C49: CQG Inc., Copyright © 2025 | G49: Designed by Thom Hartle | J49: The Invesco S&P 500® Momentum ETF (Fund) is based on the S&P 500 Momentum Index (Index). | Z49: =Z52 -> 52% of the stocks in the ETF are higher today
Z51: =SMPO!B99 -> 0.5204081633 | AA51: of the stocks in the ETF are higher today
Z52: =TEXT(Display!Z51,"0%")&" "&Display!AA51 -> 52% of the stocks in the ETF are higher today

Sheet SMPO (hidden)
A1: S.US.FOX | B1: =IF(J1>0,1,0) -> 1 | C1: S.US.FOX | D1: =RTD("cqg.rtd", ,"ContractData",C1, "LongDescription",, "T") -> Fox Corporation | H1: =RTD("cqg.rtd", ,"ContractData",C1, "LastTradeToday",, "T") -> 50.97 | I1: =RTD("cqg.rtd", ,"ContractData",C1, "NetLastTradeToday",, "T") -> 0.43 | J1: =IFERROR(RTD("cqg.rtd", ,"ContractData",C1, "PerCentNetLastTrade",, "T")/100,"") -> 0.008508112386 | K1: =RTD("cqg.rtd", ,"ContractData", C1, "T_CVol",, "T") -> 104745 | L1: 1 | M1: =IFERROR(RANK($J1,$J$1:J$98)+COUNTIF($J$1:J1,J1)-1,"") -> 26 | N1: =C1 -> S.US.FOX | O1: =VLOOKUP($L1,$M$1:$N$98,2,FALSE) -> S.US.T | P1: =RTD("cqg.rtd", ,"ContractData",O1, "LongDescription",, "T") -> AT&T Inc | Q1: =IFERROR(RTD("cqg.rtd", ,"ContractData",O1, "PerCentNetLastTrade",, "T")/100,"") -> 0.02231467474 | R1: ="https://finance.yahoo.com/quote/"&RIGHT(O1,(LEN(O1)-5)) -> https://finance.yahoo.com/quote/T | T1: =IF(Q1>=0,Q1,NA()) -> 0.02231467474 | U1: =IF(Q1>=0,NA(),-1*Q1) ->  | W1: =IFERROR(RTD("cqg.rtd", ,"ContractData",O1, "LongDescription",, "T"),"") -> AT&T Inc | Z1: =IFERROR(T1,Q1) -> 0.02231467474 | AA1: =MIN(J1:J98) -> -0.0360425488 | AB1: =VLOOKUP(AA1,J1:O98,4,FALSE) -> 98 | AC1: =VLOOKUP($AB1,$M$1:$N$98,2,FALSE) -> S.US.WMT | AD1: =IFERROR(RTD("cqg.rtd", ,"ContractData",AC1, "PerCentNetLastTrade",, "T")/100,"") -> -0.0360425488 | AE1: =IFERROR(RTD("cqg.rtd", ,"ContractData",AC1, "LongDescription",, "T"),"") -> Walmart Inc. | AF1: =IFERROR(U1,"") ->  | AG1: =IFERROR(AD1*-1,"") -> 0.0360425488 | AH1: ="https://finance.yahoo.com/quote/"&RIGHT(AC1,(LEN(AC1)-5)) -> https://finance.yahoo.com/quote/WMT
A2: S.US.FOXA | B2: =IF(J2>0,1,0) -> 1 | C2: S.US.FOXA | D2: =RTD("cqg.rtd", ,"ContractData",C2, "LongDescription",, "T") -> Fox Corporation Class A | H2: =RTD("cqg.rtd", ,"ContractData",C2, "LastTradeToday",, "T") -> 55.07 | I2: =RTD("cqg.rtd", ,"ContractData",C2, "NetLastTradeToday",, "T") -> 0.43 | J2: =IFERROR(RTD("cqg.rtd", ,"ContractData",C2, "PerCentNetLastTrade",, "T")/100,"") -> 0.007869692533 | K2: =RTD("cqg.rtd", ,"ContractData", C2, "T_CVol",, "T") -> 232670 | L2: =L1+1 -> 2 | M2: =IFERROR(RANK($J2,$J$1:J$98)+COUNTIF($J$1:J2,J2)-1,"") -> 28 | N2: =C2 -> S.US.FOXA | O2: S.US.PM | P2: =RTD("cqg.rtd", ,"ContractData",O2, "LongDescription",, "T") -> Philip Morris International | Q2: =IFERROR(RTD("cqg.rtd", ,"ContractData",O2, "PerCentNetLastTrade",, "T")/100,"") -> 0.02188624032 | R2: ="https://finance.yahoo.com/quote/"&RIGHT(O2,(LEN(O2)-5)) -> https://finance.yahoo.com/quote/PM | T2: =IF(Q2>=0,Q2,NA()) -> 0.02188624032 | U2: =IF(Q2>=0,NA(),-1*Q2) ->  | W2: =IFERROR(RTD("cqg.rtd", ,"ContractData",O2, "LongDescription",, "T"),"") -> Philip Morris International | Z2: =IFERROR(T2,Q2) -> 0.02188624032 | AB2: =AB1-1 -> 97 | AC2: S.US.TPL | AD2: =IFERROR(RTD("cqg.rtd", ,"ContractData",AC2, "PerCentNetLastTrade",, "T")/100,"") -> -0.03266188688 | AE2: =IFERROR(RTD("cqg.rtd", ,"ContractData",AC2, "LongDescription",, "T"),"") -> TEXAS PACIFIC LAND TR | AF2: =IFERROR(U2,"") ->  | AG2: =IFERROR(AD2*-1,"") -> 0.03266188688 | AH2: ="https://finance.yahoo.com/quote/"&RIGHT(AC2,(LEN(AC2)-5)) -> https://finance.yahoo.com/quote/TPL
A3: S.US.LYV | B3: 1 | C3: S.US.LYV | D3: =RTD("cqg.rtd", ,"ContractData",C3, "LongDescription",, "T") -> Live Nation Entertainment Inc | H3: =RTD("cqg.rtd", ,"ContractData",C3, "LastTradeToday",, "T") -> 142.33 | I3: =RTD("cqg.rtd", ,"ContractData",C3, "NetLastTradeToday",, "T") -> 0.11 | J3: =IFERROR(RTD("cqg.rtd", ,"ContractData",C3, "PerCentNetLastTrade",, "T")/100,"") -> 0.0007734495851 | K3: =RTD("cqg.rtd", ,"ContractData", C3, "T_CVol",, "T") -> 120628 | L3: =L2+1 -> 3 | M3: =IFERROR(RANK($J3,$J$1:J$98)+COUNTIF($J$1:J3,J3)-1,"") -> 47 | N3: S.US.LYV | O3: S.US.TMUS | P3: =RTD("cqg.rtd", ,"ContractData",O3, "LongDescription",, "T") -> T-Mobile US, Inc. | Q3: =IFERROR(RTD("cqg.rtd", ,"ContractData",O3, "PerCentNetLastTrade",, "T")/100,"") -> 0.02150537634 | R3: https://finance.yahoo.com/quote/TMUS | T3: 0.02150537634 | W3: =IFERROR(RTD("cqg.rtd", ,"ContractData",O3, "LongDescription",, "T"),"") -> T-Mobile US, Inc. | Z3: 0.02150537634 | AB3: =AB2-1 -> 96 | AC3: S.US.TSLA | AD3: =IFERROR(RTD("cqg.rtd", ,"ContractData",AC3, "PerCentNetLastTrade",, "T")/100,"") -> -0.03112057064 | AE3: =IFERROR(RTD("cqg.rtd", ,"ContractData",AC3, "LongDescription",, "T"),"") -> Tesla Inc. | AG3: 0.03112057064 | AH3: https://finance.yahoo.com/quote/TSLA
A4: S.US.META | B4: 0 | C4: S.US.META | D4: =RTD("cqg.rtd", ,"ContractData",C4, "LongDescription",, "T") -> Meta Platforms, Inc. | H4: =RTD("cqg.rtd", ,"ContractData",C4, "LastTradeToday",, "T") -> 650.65 | I4: =RTD("cqg.rtd", ,"ContractData",C4, "NetLastTradeToday",, "T") -> -8.71 | J4: =IFERROR(RTD("cqg.rtd", ,"ContractData",C4, "PerCentNetLastTrade",, "T")/100,"") -> -0.01320977918 | K4: =RTD("cqg.rtd", ,"ContractData", C4, "T_CVol",, "T") -> 2102109 | L4: 4 | M4: =IFERROR(RANK($J4,$J$1:J$98)+COUNTIF($J$1:J4,J4)-1,"") -> 83 | N4: S.US.META | O4: S.US.ETR | P4: =RTD("cqg.rtd", ,"ContractData",O4, "LongDescription",, "T") -> Entergy Corporation | Q4: =IFERROR(RTD("cqg.rtd", ,"ContractData",O4, "PerCentNetLastTrade",, "T")/100,"") -> 0.01974909949 | R4: https://finance.yahoo.com/quote/ETR | T4: 0.01974909949 | W4: =IFERROR(RTD("cqg.rtd", ,"ContractData",O4, "LongDescription",, "T"),"") -> Entergy Corporation | Z4: 0.01974909949 | AB4: 95 | AC4: S.US.ANET | AD4: =IFERROR(RTD("cqg.rtd", ,"ContractData",AC4, "PerCentNetLastTrade",, "T")/100,"") -> -0.0304418652 | AE4: =IFERROR(RTD("cqg.rtd", ,"ContractData",AC4, "LongDescription",, "T"),"") -> Arista Networks, Inc. | AG4: 0.0304418652 | AH4: https://finance.yahoo.com/quote/ANET
A5: S.US.NFLX | B5: 1 | C5: S.US.NFLX | D5: =RTD("cqg.rtd", ,"ContractData",C5, "LongDescription",, "T") -> Netflix Inc | H5: =RTD("cqg.rtd", ,"ContractData",C5, "LastTradeToday",, "T") -> 1155.75 | I5: =RTD("cqg.rtd", ,"ContractData",C5, "NetLastTradeToday",, "T") -> 4.76 | J5: =IFERROR(RTD("cqg.rtd", ,"ContractData",C5, "PerCentNetLastTrade",, "T")/100,"") -> 0.004135570248 | K5: =RTD("cqg.rtd", ,"ContractData", C5, "T_CVol",, "T") -> 533743 | L5: 5 | M5: =IFERROR(RANK($J5,$J$1:J$98)+COUNTIF($J$1:J5,J5)-1,"") -> 38 | N5: S.US.NFLX | O5: S.US.EBAY | P5: =RTD("cqg.rtd", ,"ContractData",O5, "LongDescription",, "T") -> eBay Inc | Q5: =IFERROR(RTD("cqg.rtd", ,"ContractData",O5, "PerCentNetLastTrade",, "T")/100,"") -> 0.01923355025 | R5: https://finance.yahoo.com/quote/EBAY | T5: 0.01923355025 | W5: =IFERROR(RTD("cqg.rtd", ,"ContractData",O5, "LongDescription",, "T"),"") -> eBay Inc | Z5: 0.01923355025 | AB5: 94 | AC5: S.US.KKR | AD5: =IFERROR(RTD("cqg.rtd", ,"ContractData",AC5, "PerCentNetLastTrade",, "T")/100,"") -> -0.02728047741 | AE5: =IFERROR(RTD("cqg.rtd", ,"ContractData",AC5, "LongDescription",, "T"),"") -> KKR & Co. Inc. | AG5: 0.02728047741 | AH5: https://finance.yahoo.com/quote/KKR
A6: S.US.T | B6: 1 | C6: S.US.T | D6: =RTD("cqg.rtd", ,"ContractData",C6, "LongDescription",, "T") -> AT&T Inc | H6: =RTD("cqg.rtd", ,"ContractData",C6, "LastTradeToday",, "T") -> 27.03 | I6: =RTD("cqg.rtd", ,"ContractData",C6, "NetLastTradeToday",, "T") -> 0.59 | J6: =IFERROR(RTD("cqg.rtd", ,"ContractData",C6, "PerCentNetLastTrade",, "T")/100,"") -> 0.02231467474 | K6: =RTD("cqg.rtd", ,"ContractData", C6, "T_CVol",, "T") -> 3361524 | L6: 6 | M6: =IFERROR(RANK($J6,$J$1:J$98)+COUNTIF($J$1:J6,J6)-1,"") -> 1 | N6: S.US.T | O6: S.US.MO | P6: =RTD("cqg.rtd", ,"ContractData",O6, "LongDescription",, "T") -> Altria Group Inc | Q6: =IFERROR(RTD("cqg.rtd", ,"ContractData",O6, "PerCentNetLastTrade",, "T")/100,"") -> 0.01846263092 | R6: https://finance.yahoo.com/quote/MO | T6: 0.01846263092 | W6: =IFERROR(RTD("cqg.rtd", ,"ContractData",O6, "LongDescription",, "T"),"") -> Altria Group Inc | Z6: 0.01846263092 | AB6: 93 | AC6: S.US.AMZN | AD6: =IFERROR(RTD("cqg.rtd", ,"ContractData",AC6, "PerCentNetLastTrade",, "T")/100,"") -> -0.02530321046 | AE6: =IFERROR(RTD("cqg.rtd", ,"ContractData",AC6, "LongDescription",, "T"),"") -> Amazon.com Inc | AG6: 0.02530321046 | AH6: https://finance.yahoo.com/quote/AMZN
A7: S.US.TMUS | B7: 1 | C7: S.US.TMUS | D7: =RTD("cqg.rtd", ,"ContractData",C7, "LongDescription",, "T") -> T-Mobile US, Inc. | H7: =RTD("cqg.rtd", ,"ContractData",C7, "LastTradeToday",, "T") -> 240.35 | I7: =RTD("cqg.rtd", ,"ContractData",C7, "NetLastTradeToday",, "T") -> 5.06 | J7: =IFERROR(RTD("cqg.rtd", ,"ContractData",C7, "PerCentNetLastTrade",, "T")/100,"") -> 0.02150537634 | K7: =RTD("cqg.rtd", ,"ContractData", C7, "T_CVol",, "T") -> 454752 | L7: 7 | M7: =IFERROR(RANK($J7,$J$1:J$98)+COUNTIF($J$1:J7,J7)-1,"") -> 3 | N7: S.US.TMUS | O7: S.US.NI | P7: =RTD("cqg.rtd", ,"ContractData",O7, "LongDescription",, "T") -> NiSource Inc | Q7: =IFERROR(RTD("cqg.rtd", ,"ContractData",O7, "PerCentNetLastTrade",, "T")/100,"") -> 0.017687434 | R7: https://finance.yahoo.com/quote/NI | T7: 0.017687434 | W7: =IFERROR(RTD("cqg.rtd", ,"ContractData",O7, "LongDescription",, "T"),"") -> NiSource Inc | Z7: 0.017687434 | AB7: 92 | AC7: S.US.PLTR | AD7: =IFERROR(RTD("cqg.rtd", ,"ContractData",AC7, "PerCentNetLastTrade",, "T")/100,"") -> -0.01958826241 | AE7: =IFERROR(RTD("cqg.rtd", ,"ContractData",AC7, "LongDescription",, "T"),"") -> Palantir Technologies Inc. | AG7: 0.01958826241 | AH7: https://finance.yahoo.com/quote/PLTR
A8: S.US.AMZN | B8: 0 | C8: S.US.AMZN | D8: =RTD("cqg.rtd", ,"ContractData",C8, "LongDescription",, "T") -> Amazon.com Inc | H8: =RTD("cqg.rtd", ,"ContractData",C8, "LastTradeToday",, "T") -> 204.93 | I8: =RTD("cqg.rtd", ,"ContractData",C8, "NetLastTradeToday",, "T") -> -5.32 | J8: =IFERROR(RTD("cqg.rtd", ,"ContractData",C8, "PerCentNetLastTrade",, "T")/100,"") -> -0.02530321046 | K8: =RTD("cqg.rtd", ,"ContractData", C8, "T_CVol",, "T") -> 10336201 | L8: 8 | M8: =IFERROR(RANK($J8,$J$1:J$98)+COUNTIF($J$1:J8,J8)-1,"") -> 93 | N8: S.US.AMZN | O8: S.US.BRO | P8: =RTD("cqg.rtd", ,"ContractData",O8, "LongDescription",, "T") -> BROWN AND BROWN INC | Q8: =IFERROR(RTD("cqg.rtd", ,"ContractData",O8, "PerCentNetLastTrade",, "T")/100,"") -> 0.01764108248 | R8: https://finance.yahoo.com/quote/BRO | T8: 0.01764108248 | W8: =IFERROR(RTD("cqg.rtd", ,"ContractData",O8, "LongDescription",, "T"),"") -> BROWN AND BROWN INC | Z8: 0.01764108248 | AB8: 91 | AC8: S.US.ISRG | AD8: =IFERROR(RTD("cqg.rtd", ,"ContractData",AC8, "PerCentNetLastTrade",, "T")/100,"") -> -0.0190302859 | AE8: =IFERROR(RTD("cqg.rtd", ,"ContractData",AC8, "LongDescription",, "T"),"") -> Intuitive Surgical Inc | AG8: 0.0190302859 | AH8: https://finance.yahoo.com/quote/ISRG
A9: S.US.EBAY | B9: 1 | C9: S.US.EBAY | D9: =RTD("cqg.rtd", ,"ContractData",C9, "LongDescription",, "T") -> eBay Inc | H9: =RTD("cqg.rtd", ,"ContractData",C9, "LastTradeToday",, "T") -> 70.48 | I9: =RTD("cqg.rtd", ,"ContractData",C9, "NetLastTradeToday",, "T") -> 1.33 | J9: =IFERROR(RTD("cqg.rtd", ,"ContractData",C9, "PerCentNetLastTrade",, "T")/100,"") -> 0.01923355025 | K9: =RTD("cqg.rtd", ,"ContractData", C9, "T_CVol",, "T") -> 557034 | L9: 9 | M9: =IFERROR(RANK($J9,$J$1:J$98)+COUNTIF($J$1:J9,J9)-1,"") -> 5 | N9: S.US.EBAY | O9: S.US.PPL | P9: =RTD("cqg.rtd", ,"ContractData",O9, "LongDescription",, "T") -> PPL Corp | Q9: =IFERROR(RTD("cqg.rtd", ,"ContractData",O9, "PerCentNetLastTrade",, "T")/100,"") -> 0.0161097852 | R9: https://finance.yahoo.com/quote/PPL | T9: 0.0161097852 | W9: =IFERROR(RTD("cqg.rtd", ,"ContractData",O9, "LongDescription",, "T"),"") -> PPL Corp | Z9: 0.0161097852 | AB9: 90 | AC9: S.US.BKR | AD9: =IFERROR(RTD("cqg.rtd", ,"ContractData",AC9, "PerCentNetLastTrade",, "T")/100,"") -> -0.01876321353 | AE9: =IFERROR(RTD("cqg.rtd", ,"ContractData",AC9, "LongDescription",, "T"),"") -> Baker Hughes Company | AG9: 0.01876321353 | AH9: https://finance.yahoo.com/quote/BKR
A10: S.US.GRMN | B10: 1 | C10: S.US.GRMN | D10: =RTD("cqg.rtd", ,"ContractData",C10, "LongDescription",, "T") -> Garmin Ltd | H10: =RTD("cqg.rtd", ,"ContractData",C10, "LastTradeToday",, "T") -> 200.85 | I10: =RTD("cqg.rtd", ,"ContractData",C10, "NetLastTradeToday",, "T") -> 0.27 | J10: =IFERROR(RTD("cqg.rtd", ,"ContractData",C10, "PerCentNetLastTrade",, "T")/100,"") -> 0.001346096321 | K10: =RTD("cqg.rtd", ,"ContractData", C10, "T_CVol",, "T") -> 14125 | L10: 10 | M10: =IFERROR(RANK($J10,$J$1:J$98)+COUNTIF($J$1:J10,J10)-1,"") -> 44 | N10: S.US.GRMN | O10: S.US.EVRG | P10: =RTD("cqg.rtd", ,"ContractData",O10, "LongDescription",, "T") -> Evergy, Inc. | Q10: =IFERROR(RTD("cqg.rtd", ,"ContractData",O10, "PerCentNetLastTrade",, "T")/100,"") -> 0.01607867624 | R10: https://finance.yahoo.com/quote/EVRG | T10: 0.01607867624 | W10: =IFERROR(RTD("cqg.rtd", ,"ContractData",O10, "LongDescription",, "T"),"") -> Evergy, Inc. | Z10: 0.01607867624 | AB10: 89 | AC10: S.US.UAL | AD10: =IFERROR(RTD("cqg.rtd", ,"ContractData",AC10, "PerCentNetLastTrade",, "T")/100,"") -> -0.01671097607 | AE10: =IFERROR(RTD("cqg.rtd", ,"ContractData",AC10, "LongDescription",, "T"),"") -> UAL Continental Holdings, Inc. | AG10: 0.01671097607 | AH10: https://finance.yahoo.com/quote/UAL
A11: S.US.HLT | B11: 0 | C11: S.US.HLT | D11: =RTD("cqg.rtd", ,"ContractData",C11, "LongDescription",, "T") -> Hilton Inc. | H11: =RTD("cqg.rtd", ,"ContractData",C11, "LastTradeToday",, "T") -> 252.23 | I11: =RTD("cqg.rtd", ,"ContractData",C11, "NetLastTradeToday",, "T") -> -0.77 | J11: =IFERROR(RTD("cqg.rtd", ,"ContractData",C11, "PerCentNetLastTrade",, "T")/100,"") -> -0.003043478261 | K11: =RTD("cqg.rtd", ,"ContractData", C11, "T_CVol",, "T") -> 126982 | L11: 11 | M11: =IFERROR(RANK($J11,$J$1:J$98)+COUNTIF($J$1:J11,J11)-1,"") -> 58 | N11: S.US.HLT | O11: S.US.RTX | P11: =RTD("cqg.rtd", ,"ContractData",O11, "LongDescription",, "T") -> RTX Corporation | Q11: =IFERROR(RTD("cqg.rtd", ,"ContractData",O11, "PerCentNetLastTrade",, "T")/100,"") -> 0.01582689808 | R11: https://finance.yahoo.com/quote/RTX | T11: 0.01582689808 | W11: =IFERROR(RTD("cqg.rtd", ,"ContractData",O11, "LongDescription",, "T"),"") -> RTX Corporation | Z11: 0.01582689808 | AB11: 88 | AC11: S.US.TRGP | AD11: =IFERROR(RTD("cqg.rtd", ,"ContractData",AC11, "PerCentNetLastTrade",, "T")/100,"") -> -0.01589749674 | AE11: =IFERROR(RTD("cqg.rtd", ,"ContractData",AC11, "LongDescription",, "T"),"") -> Targa Resources Corp | AG11: 0.01589749674 | AH11: https://finance.yahoo.com/quote/TRGP
A12: S.US.RCL | B12: 0 | C12: S.US.RCL | D12: =RTD("cqg.rtd", ,"ContractData",C12, "LongDescription",, "T") -> Royal Caribbean Group | H12: =RTD("cqg.rtd", ,"ContractData",C12, "LastTradeToday",, "T") -> 248.94 | I12: =RTD("cqg.rtd", ,"ContractData",C12, "NetLastTradeToday",, "T") -> -2.43 | J12: =IFERROR(RTD("cqg.rtd", ,"ContractData",C12, "PerCentNetLastTrade",, "T")/100,"") -> -0.009667024705 | K12: =RTD("cqg.rtd", ,"ContractData", C12, "T_CVol",, "T") -> 125075 | L12: 12 | M12: =IFERROR(RANK($J12,$J$1:J$98)+COUNTIF($J$1:J12,J12)-1,"") -> 77 | N12: S.US.RCL | O12: S.US.IBM | P12: =RTD("cqg.rtd", ,"ContractData",O12, "LongDescription",, "T") -> International Business Machines | Q12: =IFERROR(RTD("cqg.rtd", ,"ContractData",O12, "PerCentNetLastTrade",, "T")/100,"") -> 0.01555348693 | R12: https://finance.yahoo.com/quote/IBM | T12: 0.01555348693 | W12: =IFERROR(RTD("cqg.rtd", ,"ContractData",O12, "LongDescription",, "T"),"") -> International Business Machines | Z12: 0.01555348693 | AB12: 87 | AC12: S.US.VST | AD12: =IFERROR(RTD("cqg.rtd", ,"ContractData",AC12, "PerCentNetLastTrade",, "T")/100,"") -> -0.01583505688 | AE12: =IFERROR(RTD("cqg.rtd", ,"ContractData",AC12, "LongDescription",, "T"),"") -> Vistra Corp. | AG12: 0.01583505688 | AH12: https://finance.yahoo.com/quote/VST
A13: S.US.RL | B13: 0 | C13: S.US.RL | D13: =RTD("cqg.rtd", ,"ContractData",C13, "LongDescription",, "T") -> Ralph Lauren Corporation | H13: =RTD("cqg.rtd", ,"ContractData",C13, "LastTradeToday",, "T") -> 267.98 | I13: =RTD("cqg.rtd", ,"ContractData",C13, "NetLastTradeToday",, "T") -> -1.57 | J13: =IFERROR(RTD("cqg.rtd", ,"ContractData",C13, "PerCentNetLastTrade",, "T")/100,"") -> -0.005824522352 | K13: =RTD("cqg.rtd", ,"ContractData", C13, "T_CVol",, "T") -> 21645 | L13: 13 | M13: =IFERROR(RANK($J13,$J$1:J$98)+COUNTIF($J$1:J13,J13)-1,"") -> 69 | N13: S.US.RL | O13: S.US.PEG | P13: =RTD("cqg.rtd", ,"ContractData",O13, "LongDescription",, "T") -> Pub Svc Entrpr Grp Inc | Q13: =IFERROR(RTD("cqg.rtd", ,"ContractData",O13, "PerCentNetLastTrade",, "T")/100,"") -> 0.01487902704 | R13: https://finance.yahoo.com/quote/PEG | T13: 0.01487902704 | W13: =IFERROR(RTD("cqg.rtd", ,"ContractData",O13, "LongDescription",, "T"),"") -> Pub Svc Entrpr Grp Inc | Z13: 0.01487902704 | AB13: 86 | AC13: S.US.OKE | AD13: =IFERROR(RTD("cqg.rtd", ,"ContractData",AC13, "PerCentNetLastTrade",, "T")/100,"") -> -0.01535619443 | AE13: =IFERROR(RTD("cqg.rtd", ,"ContractData",AC13, "LongDescription",, "T"),"") -> ONEOK Inc New | AG13: 0.01535619443 | AH13: https://finance.yahoo.com/quote/OKE
A14: S.US.TJX | B14: 1 | C14: S.US.TJX | D14: =RTD("cqg.rtd", ,"ContractData",C14, "LongDescription",, "T") -> TJX Companies Inc | H14: =RTD("cqg.rtd", ,"ContractData",C14, "LastTradeToday",, "T") -> 131.84 | I14: =RTD("cqg.rtd", ,"ContractData",C14, "NetLastTradeToday",, "T") -> 0.59 | J14: =IFERROR(RTD("cqg.rtd", ,"ContractData",C14, "PerCentNetLastTrade",, "T")/100,"") -> 0.004495238095 | K14: =RTD("cqg.rtd", ,"ContractData", C14, "T_CVol",, "T") -> 391307 | L14: 14 | M14: =IFERROR(RANK($J14,$J$1:J$98)+COUNTIF($J$1:J14,J14)-1,"") -> 37 | N14: S.US.TJX | O14: S.US.ATO | P14: =RTD("cqg.rtd", ,"ContractData",O14, "LongDescription",, "T") -> Atmos Energy Corp | Q14: =IFERROR(RTD("cqg.rtd", ,"ContractData",O14, "PerCentNetLastTrade",, "T")/100,"") -> 0.01385878489 | R14: https://finance.yahoo.com/quote/ATO | T14: 0.01385878489 | W14: =IFERROR(RTD("cqg.rtd", ,"ContractData",O14, "LongDescription",, "T"),"") -> Atmos Energy Corp | Z14: 0.01385878489 | AB14: 85 | AC14: S.US.NVDA | AD14: =IFERROR(RTD("cqg.rtd", ,"ContractData",AC14, "PerCentNetLastTrade",, "T")/100,"") -> -0.01499926112 | AE14: =IFERROR(RTD("cqg.rtd", ,"ContractData",AC14, "LongDescription",, "T"),"") -> NVIDIA Corp | AG14: 0.01499926112 | AH14: https://finance.yahoo.com/quote/NVDA
A15: S.US.TPR | B15: 0 | C15: S.US.TPR | D15: =RTD("cqg.rtd", ,"ContractData",C15, "LongDescription",, "T") -> Tapestry, Inc. | H15: =RTD("cqg.rtd", ,"ContractData",C15, "LastTradeToday",, "T") -> 82.72 | I15: =RTD("cqg.rtd", ,"ContractData",C15, "NetLastTradeToday",, "T") -> -0.54 | J15: =IFERROR(RTD("cqg.rtd", ,"ContractData",C15, "PerCentNetLastTrade",, "T")/100,"") -> -0.006485707423 | K15: =RTD("cqg.rtd", ,"ContractData", C15, "T_CVol",, "T") -> 215961 | L15: 15 | M15: =IFERROR(RANK($J15,$J$1:J$98)+COUNTIF($J$1:J15,J15)-1,"") -> 71 | N15: S.US.TPR | O15: S.US.AEE | P15: =RTD("cqg.rtd", ,"ContractData",O15, "LongDescription",, "T") -> Ameren Corp | Q15: =IFERROR(RTD("cqg.rtd", ,"ContractData",O15, "PerCentNetLastTrade",, "T")/100,"") -> 0.01378802231 | R15: https://finance.yahoo.com/quote/AEE | T15: 0.01378802231 | W15: =IFERROR(RTD("cqg.rtd", ,"ContractData",O15, "LongDescription",, "T"),"") -> Ameren Corp | Z15: 0.01378802231 | AB15: 84 | AC15: S.US.SYF | AD15: =IFERROR(RTD("cqg.rtd", ,"ContractData",AC15, "PerCentNetLastTrade",, "T")/100,"") -> -0.01325695581 | AE15: =IFERROR(RTD("cqg.rtd", ,"ContractData",AC15, "LongDescription",, "T"),"") -> Synchrony Financial | AG15: 0.01325695581 | AH15: https://finance.yahoo.com/quote/SYF
A16: S.US.TSLA | B16: 0 | C16: S.US.TSLA | D16: =RTD("cqg.rtd", ,"ContractData",C16, "LongDescription",, "T") -> Tesla Inc. | H16: =RTD("cqg.rtd", ,"ContractData",C16, "LastTradeToday",, "T") -> 336.86 | I16: =RTD("cqg.rtd", ,"ContractData",C16, "NetLastTradeToday",, "T") -> -10.82 | J16: =IFERROR(RTD("cqg.rtd", ,"ContractData",C16, "PerCentNetLastTrade",, "T")/100,"") -> -0.03112057064 | K16: =RTD("cqg.rtd", ,"ContractData", C16, "T_CVol",, "T") -> 21480458 | L16: 16 | M16: =IFERROR(RANK($J16,$J$1:J$98)+COUNTIF($J$1:J16,J16)-1,"") -> 96 | N16: S.US.TSLA | O16: S.US.MSI
A17: S.US.COST | B17: 1 | C17: S.US.COST | D17: =RTD("cqg.rtd", ,"ContractData",C17, "LongDescription",, "T") -> Costco Wholesale Corp | H17: =RTD("cqg.rtd", ,"ContractData",C17, "LastTradeToday",, "T") -> 998.09 | I17: =RTD("cqg.rtd", ,"ContractData",C17, "NetLastTradeToday",, "T") -> 6.55 | J17: =IFERROR(RTD("cqg.rtd", ,"ContractData",C17, "PerCentNetLastTrade",, "T")/100,"") -> 0.006605885794 | K17: =RTD("cqg.rtd", ,"ContractData", C17, "T_CVol",, "T") -> 295171 | L17: 17 | M17: =IFERROR(RANK($J17,$J$1:J$98)+COUNTIF($J$1:J17,J17)-1,"") -> 31 | N17: S.US.COST | O17: S.US.WELL
A18: S.US.MO | B18: 1 | C18: S.US.MO | D18: =RTD("cqg.rtd", ,"ContractData",C18, "LongDescription",, "T") -> Altria Group Inc | H18: =RTD("cqg.rtd", ,"ContractData",C18, "LastTradeToday",, "T") -> 57.37 | I18: =RTD("cqg.rtd", ,"ContractData",C18, "NetLastTradeToday",, "T") -> 1.04 | J18: =IFERROR(RTD("cqg.rtd", ,"ContractData",C18, "PerCentNetLastTrade",, "T")/100,"") -> 0.01846263092 | K18: =RTD("cqg.rtd", ,"ContractData", C18, "T_CVol",, "T") -> 859115 | L18: 18 | M18: =IFERROR(RANK($J18,$J$1:J$98)+COUNTIF($J$1:J18,J18)-1,"") -> 6 | N18: S.US.MO | O18: S.US.AJG
A19: S.US.PM | B19: 1 | C19: S.US.PM | D19: =RTD("cqg.rtd", ,"ContractData",C19, "LongDescription",, "T") -> Philip Morris International | H19: =RTD("cqg.rtd", ,"ContractData",C19, "LastTradeToday",, "T") -> 167.62 | I19: =RTD("cqg.rtd", ,"ContractData",C19, "NetLastTradeToday",, "T") -> 3.59 | J19: =IFERROR(RTD("cqg.rtd", ,"ContractData",C19, "PerCentNetLastTrade",, "T")/100,"") -> 0.02188624032 | K19: =RTD("cqg.rtd", ,"ContractData", C19, "T_CVol",, "T") -> 439179 | L19: 19 | M19: =IFERROR(RANK($J19,$J$1:J$98)+COUNTIF($J$1:J19,J19)-1,"") -> 2 | N19: S.US.PM | O19: S.US.RSG
A20: S.US.WMT | B20: 0 | C20: S.US.WMT | D20: =RTD("cqg.rtd", ,"ContractData",C20, "LongDescription",, "T") -> Walmart Inc. | H20: =RTD("cqg.rtd", ,"ContractData",C20, "LastTradeToday",, "T") -> 93.34 | I20: =RTD("cqg.rtd", ,"ContractData",C20, "NetLastTradeToday",, "T") -> -3.49 | J20: =IFERROR(RTD("cqg.rtd", ,"ContractData",C20, "PerCentNetLastTrade",, "T")/100,"") -> -0.0360425488 | K20: =RTD("cqg.rtd", ,"ContractData", C20, "T_CVol",, "T") -> 11332969 | L20: 20 | M20: =IFERROR(RANK($J20,$J$1:J$98)+COUNTIF($J$1:J20,J20)-1,"") -> 98 | N20: S.US.WMT | O20: S.US.NRG
A21: S.US.BKR | B21: 0 | C21: S.US.BKR | D21: =RTD("cqg.rtd", ,"ContractData",C21, "LongDescription",, "T") -> Baker Hughes Company | H21: =RTD("cqg.rtd", ,"ContractData",C21, "LastTradeToday",, "T") -> 37.13 | I21: =RTD("cqg.rtd", ,"ContractData",C21, "NetLastTradeToday",, "T") -> -0.71 | J21: =IFERROR(RTD("cqg.rtd", ,"ContractData",C21, "PerCentNetLastTrade",, "T")/100,"") -> -0.01876321353 | K21: =RTD("cqg.rtd", ,"ContractData", C21, "T_CVol",, "T") -> 587917 | L21: 21 | M21: =IFERROR(RANK($J21,$J$1:J$98)+COUNTIF($J$1:J21,J21)-1,"") -> 90 | N21: S.US.BKR | O21: S.US.WTW
A22: S.US.KMI | B22: 1 | C22: S.US.KMI | D22: =RTD("cqg.rtd", ,"ContractData",C22, "LongDescription",, "T") -> Kinder Morgan, Inc. | H22: =RTD("cqg.rtd", ,"ContractData",C22, "LastTradeToday",, "T") -> 27.59 | I22: =RTD("cqg.rtd", ,"ContractData",C22, "NetLastTradeToday",, "T") -> 0.13 | J22: =IFERROR(RTD("cqg.rtd", ,"ContractData",C22, "PerCentNetLastTrade",, "T")/100,"") -> 0.004734158776 | K22: =RTD("cqg.rtd", ,"ContractData", C22, "T_CVol",, "T") -> 1281603 | L22: 22 | M22: =IFERROR(RANK($J22,$J$1:J$98)+COUNTIF($J$1:J22,J22)-1,"") -> 36 | N22: S.US.KMI | O22: S.US.BLK
A23: S.US.OKE | B23: 0 | C23: S.US.OKE | D23: =RTD("cqg.rtd", ,"ContractData",C23, "LongDescription",, "T") -> ONEOK Inc New | H23: =RTD("cqg.rtd", ,"ContractData",C23, "LastTradeToday",, "T") -> 85.28 | I23: =RTD("cqg.rtd", ,"ContractData",C23, "NetLastTradeToday",, "T") -> -1.33 | J23: =IFERROR(RTD("cqg.rtd", ,"ContractData",C23, "PerCentNetLastTrade",, "T")/100,"") -> -0.01535619443 | K23: =RTD("cqg.rtd", ,"ContractData", C23, "T_CVol",, "T") -> 510241 | L23: 23 | M23: =IFERROR(RANK($J23,$J$1:J$98)+COUNTIF($J$1:J23,J23)-1,"") -> 86 | N23: S.US.OKE | O23: S.US.BSX
A24: S.US.TPL | B24: 0 | C24: S.US.TPL | D24: =RTD("cqg.rtd", ,"ContractData",C24, "LongDescription",, "T") -> TEXAS PACIFIC LAND TR | H24: =RTD("cqg.rtd", ,"ContractData",C24, "LastTradeToday",, "T") -> 1360 | I24: =RTD("cqg.rtd", ,"ContractData",C24, "NetLastTradeToday",, "T") -> -45.92 | J24: =IFERROR(RTD("cqg.rtd", ,"ContractData",C24, "PerCentNetLastTrade",, "T")/100,"") -> -0.03266188688 | K24: =RTD("cqg.rtd", ,"ContractData", C24, "T_CVol",, "T") -> 6436 | L24: 24 | M24: =IFERROR(RANK($J24,$J$1:J$98)+COUNTIF($J$1:J24,J24)-1,"") -> 97 | N24: S.US.TPL | O24: S.US.FICO
A25: S.US.TRGP | B25: 0 | C25: S.US.TRGP | D25: =RTD("cqg.rtd", ,"ContractData",C25, "LongDescription",, "T") -> Targa Resources Corp | H25: =RTD("cqg.rtd", ,"ContractData",C25, "LastTradeToday",, "T") -> 165.9 | I25: =RTD("cqg.rtd", ,"ContractData",C25, "NetLastTradeToday",, "T") -> -2.68 | J25: =IFERROR(RTD("cqg.rtd", ,"ContractData",C25, "PerCentNetLastTrade",, "T")/100,"") -> -0.01589749674 | K25: =RTD("cqg.rtd", ,"ContractData", C25, "T_CVol",, "T") -> 392675 | L25: 25 | M25: =IFERROR(RANK($J25,$J$1:J$98)+COUNTIF($J$1:J25,J25)-1,"") -> 88 | N25: S.US.TRGP | O25: S.US.ICE
A26: S.US.WMB | B26: 1 | C26: S.US.WMB | D26: =RTD("cqg.rtd", ,"ContractData",C26, "LongDescription",, "T") -> Williams Companies Inc | H26: =RTD("cqg.rtd", ,"ContractData",C26, "LastTradeToday",, "T") -> 58.28 | I26: =RTD("cqg.rtd", ,"ContractData",C26, "NetLastTradeToday",, "T") -> 0.08 | J26: =IFERROR(RTD("cqg.rtd", ,"ContractData",C26, "PerCentNetLastTrade",, "T")/100,"") -> 0.001374570447 | K26: =RTD("cqg.rtd", ,"ContractData", C26, "T_CVol",, "T") -> 359543 | L26: 26 | M26: =IFERROR(RANK($J26,$J$1:J$98)+COUNTIF($J$1:J26,J26)-1,"") -> 43 | N26: S.US.WMB | O26: S.US.FOX
A27: S.US.AJG | B27: 1 | C27: S.US.AJG | D27: =RTD("cqg.rtd", ,"ContractData",C27, "LongDescription",, "T") -> Arthur J Gallagher Co | H27: =RTD("cqg.rtd", ,"ContractData",C27, "LastTradeToday",, "T") -> 333.91 | I27: =RTD("cqg.rtd", ,"ContractData",C27, "NetLastTradeToday",, "T") -> 4.27 | J27: =IFERROR(RTD("cqg.rtd", ,"ContractData",C27, "PerCentNetLastTrade",, "T")/100,"") -> 0.01295352506 | K27: =RTD("cqg.rtd", ,"ContractData", C27, "T_CVol",, "T") -> 46491 | L27: 27 | M27: =IFERROR(RANK($J27,$J$1:J$98)+COUNTIF($J$1:J27,J27)-1,"") -> 18 | N27: S.US.AJG | O27: S.US.PGR
A28: S.US.AMP | B28: 0 | C28: S.US.AMP | D28: =RTD("cqg.rtd", ,"ContractData",C28, "LongDescription",, "T") -> Ameriprise Financial Inc | H28: =RTD("cqg.rtd", ,"ContractData",C28, "LastTradeToday",, "T") -> 518.71 | I28: =RTD("cqg.rtd", ,"ContractData",C28, "NetLastTradeToday",, "T") -> -2.96 | J28: =IFERROR(RTD("cqg.rtd", ,"ContractData",C28, "PerCentNetLastTrade",, "T")/100,"") -> -0.00567408515 | K28: =RTD("cqg.rtd", ,"ContractData", C28, "T_CVol",, "T") -> 19948 | L28: 28 | M28: =IFERROR(RANK($J28,$J$1:J$98)+COUNTIF($J$1:J28,J28)-1,"") -> 67 | N28: S.US.AMP | O28: S.US.FOXA
A29: S.US.APO | B29: 0 | C29: S.US.APO | D29: =RTD("cqg.rtd", ,"ContractData",C29, "LongDescription",, "T") -> Apollo Global Management, LLC | H29: =RTD("cqg.rtd", ,"ContractData",C29, "LastTradeToday",, "T") -> 142.79 | I29: =RTD("cqg.rtd", ,"ContractData",C29, "NetLastTradeToday",, "T") -> -1.45 | J29: =IFERROR(RTD("cqg.rtd", ,"ContractData",C29, "PerCentNetLastTrade",, "T")/100,"") -> -0.01005268996 | K29: =RTD("cqg.rtd", ,"ContractData", C29, "T_CVol",, "T") -> 141889 | L29: 29 | M29: =IFERROR(RANK($J29,$J$1:J$98)+COUNTIF($J$1:J29,J29)-1,"") -> 79 | N29: S.US.APO | O29: S.US.IRM
A30: S.US.AXP | B30: 0 | C30: S.US.AXP | D30: =RTD("cqg.rtd", ,"ContractData",C30, "LongDescription",, "T") -> American Express Co | H30: =RTD("cqg.rtd", ,"ContractData",C30, "LastTradeToday",, "T") -> 298.38 | I30: =RTD("cqg.rtd", ,"ContractData",C30, "NetLastTradeToday",, "T") -> -1.72 | J30: =IFERROR(RTD("cqg.rtd", ,"ContractData",C30, "PerCentNetLastTrade",, "T")/100,"") -> -0.005731422859 | K30: =RTD("cqg.rtd", ,"ContractData", C30, "T_CVol",, "T") -> 197112 | L30: 30 | M30: =IFERROR(RANK($J30,$J$1:J$98)+COUNTIF($J$1:J30,J30)-1,"") -> 68 | N30: S.US.AXP | O30: S.US.BK
A31: S.US.BAC | B31: 0 | C31: S.US.BAC | D31: =RTD("cqg.rtd", ,"ContractData",C31, "LongDescription",, "T") -> Bank of America Corp | H31: =RTD("cqg.rtd", ,"ContractData",C31, "LastTradeToday",, "T") -> 44.51 | I31: =RTD("cqg.rtd", ,"ContractData",C31, "NetLastTradeToday",, "T") -> -0.23 | J31: =IFERROR(RTD("cqg.rtd", ,"ContractData",C31, "PerCentNetLastTrade",, "T")/100,"") -> -0.00514081359 | K31: =RTD("cqg.rtd", ,"ContractData", C31, "T_CVol",, "T") -> 4276832 | L31: 31 | M31: =IFERROR(RANK($J31,$J$1:J$98)+COUNTIF($J$1:J31,J31)-1,"") -> 65 | N31: S.US.BAC | O31: S.US.COST
A32: S.US.BK | B32: 1 | C32: S.US.BK | D32: =RTD("cqg.rtd", ,"ContractData",C32, "LongDescription",, "T") -> Bank of New York Co Inc | H32: =RTD("cqg.rtd", ,"ContractData",C32, "LastTradeToday",, "T") -> 88.53 | I32: =RTD("cqg.rtd", ,"ContractData",C32, "NetLastTradeToday",, "T") -> 0.59 | J32: =IFERROR(RTD("cqg.rtd", ,"ContractData",C32, "PerCentNetLastTrade",, "T")/100,"") -> 0.006709119854 | K32: =RTD("cqg.rtd", ,"ContractData", C32, "T_CVol",, "T") -> 241560 | L32: 32 | M32: =IFERROR(RANK($J32,$J$1:J$98)+COUNTIF($J$1:J32,J32)-1,"") -> 30 | N32: S.US.BK | O32: S.US.GE
A33: S.US.BLK | B33: 1 | C33: S.US.BLK | D33: =RTD("cqg.rtd", ,"ContractData",C33, "LongDescription",, "T") -> BlackRock, Inc. | H33: =RTD("cqg.rtd", ,"ContractData",C33, "LastTradeToday",, "T") -> 976.6 | I33: =RTD("cqg.rtd", ,"ContractData",C33, "NetLastTradeToday",, "T") -> 9.54 | J33: =IFERROR(RTD("cqg.rtd", ,"ContractData",C33, "PerCentNetLastTrade",, "T")/100,"") -> 0.009864951502 | K33: =RTD("cqg.rtd", ,"ContractData", C33, "T_CVol",, "T") -> 113782 | L33: 33 | M33: =IFERROR(RANK($J33,$J$1:J$98)+COUNTIF($J$1:J33,J33)-1,"") -> 22 | N33: S.US.BLK | O33: =VLOOKUP($L33,$M$1:$N$98,2,FALSE) -> S.US.FI
A34: S.US.BRO | B34: 1 | C34: S.US.BRO | D34: =RTD("cqg.rtd", ,"ContractData",C34, "LongDescription",, "T") -> BROWN AND BROWN INC | H34: =RTD("cqg.rtd", ,"ContractData",C34, "LastTradeToday",, "T") -> 110.18 | I34: =RTD("cqg.rtd", ,"ContractData",C34, "NetLastTradeToday",, "T") -> 1.91 | J34: =IFERROR(RTD("cqg.rtd", ,"ContractData",C34, "PerCentNetLastTrade",, "T")/100,"") -> 0.01764108248 | K34: =RTD("cqg.rtd", ,"ContractData", C34, "T_CVol",, "T") -> 372224 | L34: 34 | M34: =IFERROR(RANK($J34,$J$1:J$98)+COUNTIF($J$1:J34,J34)-1,"") -> 8 | N34: S.US.BRO | O34: S.US.DVA
A35: S.US.C | B35: 0 | C35: S.US.C | D35: =RTD("cqg.rtd", ,"ContractData",C35, "LongDescription",, "T") -> Citigroup Inc | H35: =RTD("cqg.rtd", ,"ContractData",C35, "LastTradeToday",, "T") -> 75.04 | I35: =RTD("cqg.rtd", ,"ContractData",C35, "NetLastTradeToday",, "T") -> -0.25 | J35: =IFERROR(RTD("cqg.rtd", ,"ContractData",C35, "PerCentNetLastTrade",, "T")/100,"") -> -0.00332049409 | K35: =RTD("cqg.rtd", ,"ContractData", C35, "T_CVol",, "T") -> 1763306 | L35: 35 | M35: =IFERROR(RANK($J35,$J$1:J$98)+COUNTIF($J$1:J35,J35)-1,"") -> 60 | N35: S.US.C | O35: S.US.VLTO
A36: S.US.COF | B36: 0 | C36: S.US.COF | D36: =RTD("cqg.rtd", ,"ContractData",C36, "LongDescription",, "T") -> Capital One Financl Corp | H36: =RTD("cqg.rtd", ,"ContractData",C36, "LastTradeToday",, "T") -> 195.44 | I36: =RTD("cqg.rtd", ,"ContractData",C36, "NetLastTradeToday",, "T") -> -1.8 | J36: =IFERROR(RTD("cqg.rtd", ,"ContractData",C36, "PerCentNetLastTrade",, "T")/100,"") -> -0.009125937944 | K36: =RTD("cqg.rtd", ,"ContractData", C36, "T_CVol",, "T") -> 950305 | L36: 36 | M36: =IFERROR(RANK($J36,$J$1:J$98)+COUNTIF($J$1:J36,J36)-1,"") -> 76 | N36: S.US.COF | O36: S.US.KMI
A37: S.US.FI | B37: 1 | C37: S.US.FI | D37: =RTD("cqg.rtd", ,"ContractData",C37, "LongDescription",, "T") -> Fiserv, Inc. | H37: =RTD("cqg.rtd", ,"ContractData",C37, "LastTradeToday",, "T") -> 190.83 | I37: =RTD("cqg.rtd", ,"ContractData",C37, "NetLastTradeToday",, "T") -> 0.97 | J37: =IFERROR(RTD("cqg.rtd", ,"ContractData",C37, "PerCentNetLastTrade",, "T")/100,"") -> 0.005109027705 | K37: =RTD("cqg.rtd", ,"ContractData", C37, "T_CVol",, "T") -> 400190 | L37: 37 | M37: =IFERROR(RANK($J37,$J$1:J$98)+COUNTIF($J$1:J37,J37)-1,"") -> 33 | N37: S.US.FI | O37: S.US.TJX
A38: S.US.GS | B38: 1 | C38: S.US.GS | D38: =RTD("cqg.rtd", ,"ContractData",C38, "LongDescription",, "T") -> Goldman Sachs Group | H38: =RTD("cqg.rtd", ,"ContractData",C38, "LastTradeToday",, "T") -> 612.21 | I38: =RTD("cqg.rtd", ,"ContractData",C38, "NetLastTradeToday",, "T") -> 0.61 | J38: =IFERROR(RTD("cqg.rtd", ,"ContractData",C38, "PerCentNetLastTrade",, "T")/100,"") -> 0.0009973839111 | K38: =RTD("cqg.rtd", ,"ContractData", C38, "T_CVol",, "T") -> 295546 | L38: 38 | M38: =IFERROR(RANK($J38,$J$1:J$98)+COUNTIF($J$1:J38,J38)-1,"") -> 46 | N38: S.US.GS | O38: S.US.NFLX
A39: S.US.ICE | B39: 1 | C39: S.US.ICE | D39: =RTD("cqg.rtd", ,"ContractData",C39, "LongDescription",, "T") -> Intercontinental, Inc. | H39: =RTD("cqg.rtd", ,"ContractData",C39, "LastTradeToday",, "T") -> 173.41 | I39: =RTD("cqg.rtd", ,"ContractData",C39, "NetLastTradeToday",, "T") -> 1.47 | J39: =IFERROR(RTD("cqg.rtd", ,"ContractData",C39, "PerCentNetLastTrade",, "T")/100,"") -> 0.00854949401 | K39: =RTD("cqg.rtd", ,"ContractData", C39, "T_CVol",, "T") -> 170329 | L39: 39 | M39: =IFERROR(RANK($J39,$J$1:J$98)+COUNTIF($J$1:J39,J39)-1,"") -> 25 | N39: S.US.ICE | O39: S.US.JPM
A40: S.US.JPM | B40: 1 | C40: S.US.JPM | D40: =RTD("cqg.rtd", ,"ContractData",C40, "LongDescription",, "T") -> JPMorgan Chase & Co. | H40: =RTD("cqg.rtd", ,"ContractData",C40, "LastTradeToday",, "T") -> 266.56 | I40: =RTD("cqg.rtd", ,"ContractData",C40, "NetLastTradeToday",, "T") -> 0.92 | J40: =IFERROR(RTD("cqg.rtd", ,"ContractData",C40, "PerCentNetLastTrade",, "T")/100,"") -> 0.003463333835 | K40: =RTD("cqg.rtd", ,"ContractData", C40, "T_CVol",, "T") -> 1200718 | L40: 40 | M40: =IFERROR(RANK($J40,$J$1:J$98)+COUNTIF($J$1:J40,J40)-1,"") -> 39 | N40: S.US.JPM | O40: S.US.GLW
A41: S.US.KKR | B41: 0 | C41: S.US.KKR | D41: =RTD("cqg.rtd", ,"ContractData",C41, "LongDescription",, "T") -> KKR & Co. Inc. | H41: =RTD("cqg.rtd", ,"ContractData",C41, "LastTradeToday",, "T") -> 125.51 | I41: =RTD("cqg.rtd", ,"ContractData",C41, "NetLastTradeToday",, "T") -> -3.52 | J41: =IFERROR(RTD("cqg.rtd", ,"ContractData",C41, "PerCentNetLastTrade",, "T")/100,"") -> -0.02728047741 | K41: =RTD("cqg.rtd", ,"ContractData", C41, "T_CVol",, "T") -> 471517 | L41: 41 | M41: =IFERROR(RANK($J41,$J$1:J$98)+COUNTIF($J$1:J41,J41)-1,"") -> 94 | N41: S.US.KKR | O41: S.US.FFIV
A42: S.US.MS | B42: 0 | C42: S.US.MS | D42: =RTD("cqg.rtd", ,"ContractData",C42, "LongDescription",, "T") -> Morgan Stanley | H42: =RTD("cqg.rtd", ,"ContractData",C42, "LastTradeToday",, "T") -> 130.44 | I42: =RTD("cqg.rtd", ,"ContractData",C42, "NetLastTradeToday",, "T") -> -0.6 | J42: =IFERROR(RTD("cqg.rtd", ,"ContractData",C42, "PerCentNetLastTrade",, "T")/100,"") -> -0.004578754579 | K42: =RTD("cqg.rtd", ,"ContractData", C42, "T_CVol",, "T") -> 1061394 | L42: 42 | M42: =IFERROR(RANK($J42,$J$1:J$98)+COUNTIF($J$1:J42,J42)-1,"") -> 63 | N42: S.US.MS | O42: S.US.HWM
A43: S.US.MTB | B43: 1 | C43: S.US.MTB | D43: =RTD("cqg.rtd", ,"ContractData",C43, "LongDescription",, "T") -> M&T Bank Corp | H43: =RTD("cqg.rtd", ,"ContractData",C43, "LastTradeToday",, "T") -> 185.61 | I43: =RTD("cqg.rtd", ,"ContractData",C43, "NetLastTradeToday",, "T") -> 0.2 | J43: =IFERROR(RTD("cqg.rtd", ,"ContractData",C43, "PerCentNetLastTrade",, "T")/100,"") -> 0.00107869047 | K43: =RTD("cqg.rtd", ,"ContractData", C43, "T_CVol",, "T") -> 50235 | L43: 43 | M43: =IFERROR(RANK($J43,$J$1:J$98)+COUNTIF($J$1:J43,J43)-1,"") -> 45 | N43: S.US.MTB | O43: S.US.WMB
A44: S.US.NDAQ | B44: 0 | C44: S.US.NDAQ | D44: =RTD("cqg.rtd", ,"ContractData",C44, "LongDescription",, "T") -> Nasdaq, Inc. | H44: =RTD("cqg.rtd", ,"ContractData",C44, "LastTradeToday",, "T") -> 80.98 | I44: =RTD("cqg.rtd", ,"ContractData",C44, "NetLastTradeToday",, "T") -> -0.08 | J44: =IFERROR(RTD("cqg.rtd", ,"ContractData",C44, "PerCentNetLastTrade",, "T")/100,"") -> -0.0009869232667 | K44: =RTD("cqg.rtd", ,"ContractData", C44, "T_CVol",, "T") -> 230362 | L44: 44 | M44: =IFERROR(RANK($J44,$J$1:J$98)+COUNTIF($J$1:J44,J44)-1,"") -> 54 | N44: S.US.NDAQ | O44: S.US.GRMN
A45: S.US.NTRS | B45: 0 | C45: S.US.NTRS | D45: =RTD("cqg.rtd", ,"ContractData",C45, "LongDescription",, "T") -> Northern Trust Corp | H45: =RTD("cqg.rtd", ,"ContractData",C45, "LastTradeToday",, "T") -> 106.1 | I45: =RTD("cqg.rtd", ,"ContractData",C45, "NetLastTradeToday",, "T") -> -0.29 | J45: =IFERROR(RTD("cqg.rtd", ,"ContractData",C45, "PerCentNetLastTrade",, "T")/100,"") -> -0.002725820096 | K45: =RTD("cqg.rtd", ,"ContractData", C45, "T_CVol",, "T") -> 55872 | L45: 45 | M45: =IFERROR(RANK($J45,$J$1:J$98)+COUNTIF($J$1:J45,J45)-1,"") -> 57 | N45: S.US.NTRS | O45: S.US.MTB
A46: S.US.PGR | B46: 1 | C46: S.US.PGR | D46: =RTD("cqg.rtd", ,"ContractData",C46, "LongDescription",, "T") -> Progressive Corp | H46: =RTD("cqg.rtd", ,"ContractData",C46, "LastTradeToday",, "T") -> 280.47 | I46: =RTD("cqg.rtd", ,"ContractData",C46, "NetLastTradeToday",, "T") -> 2.3 | J46: =IFERROR(RTD("cqg.rtd", ,"ContractData",C46, "PerCentNetLastTrade",, "T")/100,"") -> 0.008268325125 | K46: =RTD("cqg.rtd", ,"ContractData", C46, "T_CVol",, "T") -> 558315 | L46: 46 | M46: =IFERROR(RANK($J46,$J$1:J$98)+COUNTIF($J$1:J46,J46)-1,"") -> 27 | N46: S.US.PGR | O46: S.US.GS
A47: S.US.RJF | B47: 0 | C47: S.US.RJF | D47: =RTD("cqg.rtd", ,"ContractData",C47, "LongDescription",, "T") -> Raymond James Fincl Inc | H47: =RTD("cqg.rtd", ,"ContractData",C47, "LastTradeToday",, "T") -> 151.71 | I47: =RTD("cqg.rtd", ,"ContractData",C47, "NetLastTradeToday",, "T") -> -0.48 | J47: =IFERROR(RTD("cqg.rtd", ,"ContractData",C47, "PerCentNetLastTrade",, "T")/100,"") -> -0.003153952296 | K47: =RTD("cqg.rtd", ,"ContractData", C47, "T_CVol",, "T") -> 34411 | L47: 47 | M47: =IFERROR(RANK($J47,$J$1:J$98)+COUNTIF($J$1:J47,J47)-1,"") -> 59 | N47: S.US.RJF | O47: S.US.LYV
A48: S.US.STT | B48: 1 | C48: S.US.STT | D48: =RTD("cqg.rtd", ,"ContractData",C48, "LongDescription",, "T") -> State Street Corp | H48: =RTD("cqg.rtd", ,"ContractData",C48, "LastTradeToday",, "T") -> 97.76 | I48: =RTD("cqg.rtd", ,"ContractData",C48, "NetLastTradeToday",, "T") -> 0.05 | J48: =IFERROR(RTD("cqg.rtd", ,"ContractData",C48, "PerCentNetLastTrade",, "T")/100,"") -> 0.0005117183502 | K48: =RTD("cqg.rtd", ,"ContractData", C48, "T_CVol",, "T") -> 66140 | L48: 48 | M48: =IFERROR(RANK($J48,$J$1:J$98)+COUNTIF($J$1:J48,J48)-1,"") -> 48 | N48: S.US.STT | O48: S.US.STT
A49: S.US.SYF | B49: 0 | C49: S.US.SYF | D49: =RTD("cqg.rtd", ,"ContractData",C49, "LongDescription",, "T") -> Synchrony Financial | H49: =RTD("cqg.rtd", ,"ContractData",C49, "LastTradeToday",, "T") -> 60.29 | I49: =RTD("cqg.rtd", ,"ContractData",C49, "NetLastTradeToday",, "T") -> -0.81 | J49: =IFERROR(RTD("cqg.rtd", ,"ContractData",C49, "PerCentNetLastTrade",, "T")/100,"") -> -0.01325695581 | K49: =RTD("cqg.rtd", ,"ContractData", C49, "T_CVol",, "T") -> 352993 | L49: 49 | M49: =IFERROR(RANK($J49,$J$1:J$98)+COUNTIF($J$1:J49,J49)-1,"") -> 84 | N49: S.US.SYF | O49: S.US.JCI
A50: S.US.WFC | B50: 0 | C50: S.US.WFC | D50: =RTD("cqg.rtd", ,"ContractData",C50, "LongDescription",, "T") -> Wells Fargo & Co New | H50: =RTD("cqg.rtd", ,"ContractData",C50, "LastTradeToday",, "T") -> 75.93 | I50: =RTD("cqg.rtd", ,"ContractData",C50, "NetLastTradeToday",, "T") -> -0.35 | J50: =IFERROR(RTD("cqg.rtd", ,"ContractData",C50, "PerCentNetLastTrade",, "T")/100,"") -> -0.004588358679 | K50: =RTD("cqg.rtd", ,"ContractData", C50, "T_CVol",, "T") -> 1188035 | L50: 50 | M50: =IFERROR(RANK($J50,$J$1:J$98)+COUNTIF($J$1:J50,J50)-1,"") -> 64 | N50: S.US.WFC | O50: S.US.TYL
A51: S.US.WTW | B51: 1 | C51: S.US.WTW | D51: =RTD("cqg.rtd", ,"ContractData",C51, "LongDescription",, "T") -> Willis Towers Watson | H51: =RTD("cqg.rtd", ,"ContractData",C51, "LastTradeToday",, "T") -> 306.59 | I51: =RTD("cqg.rtd", ,"ContractData",C51, "NetLastTradeToday",, "T") -> 3.22 | J51: =IFERROR(RTD("cqg.rtd", ,"ContractData",C51, "PerCentNetLastTrade",, "T")/100,"") -> 0.01061410159 | K51: =RTD("cqg.rtd", ,"ContractData", C51, "T_CVol",, "T") -> 17477 | L51: 51 | M51: =IFERROR(RANK($J51,$J$1:J$98)+COUNTIF($J$1:J51,J51)-1,"") -> 21 | N51: S.US.WTW | O51: S.US.GDDY
A52: S.US.BSX | B52: 1 | C52: S.US.BSX | D52: =RTD("cqg.rtd", ,"ContractData",C52, "LongDescription",, "T") -> Boston Scientific Corp | H52: =RTD("cqg.rtd", ,"ContractData",C52, "LastTradeToday",, "T") -> 103.96 | I52: =RTD("cqg.rtd", ,"ContractData",C52, "NetLastTradeToday",, "T") -> 1.01 | J52: =IFERROR(RTD("cqg.rtd", ,"ContractData",C52, "PerCentNetLastTrade",, "T")/100,"") -> 0.009810587664 | K52: =RTD("cqg.rtd", ,"ContractData", C52, "T_CVol",, "T") -> 599199 | L52: 52 | M52: =IFERROR(RANK($J52,$J$1:J$98)+COUNTIF($J$1:J52,J52)-1,"") -> 23 | N52: S.US.BSX | O52: S.US.PNR
A53: S.US.DVA | B53: 1 | C53: S.US.DVA | D53: =RTD("cqg.rtd", ,"ContractData",C53, "LongDescription",, "T") -> DaVita Inc. | H53: =RTD("cqg.rtd", ,"ContractData",C53, "LastTradeToday",, "T") -> 140.58 | I53: =RTD("cqg.rtd", ,"ContractData",C53, "NetLastTradeToday",, "T") -> 0.68 | J53: =IFERROR(RTD("cqg.rtd", ,"ContractData",C53, "PerCentNetLastTrade",, "T")/100,"") -> 0.004860614725 | K53: =RTD("cqg.rtd", ,"ContractData", C53, "T_CVol",, "T") -> 32896 | L53: 53 | M53: =IFERROR(RANK($J53,$J$1:J$98)+COUNTIF($J$1:J53,J53)-1,"") -> 34 | N53: S.US.DVA | O53: S.US.TT
A54: S.US.ISRG | B54: 0 | C54: S.US.ISRG | D54: =RTD("cqg.rtd", ,"ContractData",C54, "LongDescription",, "T") -> Intuitive Surgical Inc | H54: =RTD("cqg.rtd", ,"ContractData",C54, "LastTradeToday",, "T") -> 555.17 | I54: =RTD("cqg.rtd", ,"ContractData",C54, "NetLastTradeToday",, "T") -> -10.77 | J54: =IFERROR(RTD("cqg.rtd", ,"ContractData",C54, "PerCentNetLastTrade",, "T")/100,"") -> -0.0190302859 | K54: =RTD("cqg.rtd", ,"ContractData", C54, "T_CVol",, "T") -> 375241 | L54: 54 | M54: =IFERROR(RANK($J54,$J$1:J$98)+COUNTIF($J$1:J54,J54)-1,"") -> 91 | N54: S.US.ISRG | O54: S.US.NDAQ
A55: S.US.AXON | B55: 0 | C55: S.US.AXON | D55: =RTD("cqg.rtd", ,"ContractData",C55, "LongDescription",, "T") -> Axon Enterprise, Inc. | H55: =RTD("cqg.rtd", ,"ContractData",C55, "LastTradeToday",, "T") -> 724.7 | I55: =RTD("cqg.rtd", ,"ContractData",C55, "NetLastTradeToday",, "T") -> -3.83 | J55: =IFERROR(RTD("cqg.rtd", ,"ContractData",C55, "PerCentNetLastTrade",, "T")/100,"") -> -0.005257161682 | K55: =RTD("cqg.rtd", ,"ContractData", C55, "T_CVol",, "T") -> 47129 | L55: 55 | M55: =IFERROR(RANK($J55,$J$1:J$98)+COUNTIF($J$1:J55,J55)-1,"") -> 66 | N55: S.US.AXON | O55: S.US.CBRE
A56: S.US.CMI | B56: 0 | C56: S.US.CMI | D56: =RTD("cqg.rtd", ,"ContractData",C56, "LongDescription",, "T") -> Cummins Inc | H56: =RTD("cqg.rtd", ,"ContractData",C56, "LastTradeToday",, "T") -> 329.91 | I56: =RTD("cqg.rtd", ,"ContractData",C56, "NetLastTradeToday",, "T") -> -2.92 | J56: =IFERROR(RTD("cqg.rtd", ,"ContractData",C56, "PerCentNetLastTrade",, "T")/100,"") -> -0.008773247604 | K56: =RTD("cqg.rtd", ,"ContractData", C56, "T_CVol",, "T") -> 35347 | L56: 56 | M56: =IFERROR(RANK($J56,$J$1:J$98)+COUNTIF($J$1:J56,J56)-1,"") -> 75 | N56: S.US.CMI | O56: S.US.WAB
A57: S.US.DAL | B57: 0 | C57: S.US.DAL | D57: =RTD("cqg.rtd", ,"ContractData",C57, "LongDescription",, "T") -> Delta Airlines, Inc. | H57: =RTD("cqg.rtd", ,"ContractData",C57, "LastTradeToday",, "T") -> 50.18 | I57: =RTD("cqg.rtd", ,"ContractData",C57, "NetLastTradeToday",, "T") -> -0.4 | J57: =IFERROR(RTD("cqg.rtd", ,"ContractData",C57, "PerCentNetLastTrade",, "T")/100,"") -> -0.007908264136 | K57: =RTD("cqg.rtd", ,"ContractData", C57, "T_CVol",, "T") -> 728161 | L57: 57 | M57: =IFERROR(RANK($J57,$J$1:J$98)+COUNTIF($J$1:J57,J57)-1,"") -> 74 | N57: S.US.DAL | O57: S.US.NTRS
A58: S.US.DOV | B58: 0 | C58: S.US.DOV | D58: =RTD("cqg.rtd", ,"ContractData",C58, "LongDescription",, "T") -> Dover Corporation | H58: =RTD("cqg.rtd", ,"ContractData",C58, "LastTradeToday",, "T") -> 184.02 | I58: =RTD("cqg.rtd", ,"ContractData",C58, "NetLastTradeToday",, "T") -> -0.66 | J58: =IFERROR(RTD("cqg.rtd", ,"ContractData",C58, "PerCentNetLastTrade",, "T")/100,"") -> -0.003573749188 | K58: =RTD("cqg.rtd", ,"ContractData", C58, "T_CVol",, "T") -> 24162 | L58: 58 | M58: =IFERROR(RANK($J58,$J$1:J$98)+COUNTIF($J$1:J58,J58)-1,"") -> 62 | N58: S.US.DOV | O58: S.US.HLT
A59: S.US.GE | B59: 1 | C59: S.US.GE | D59: =RTD("cqg.rtd", ,"ContractData",C59, "LongDescription",, "T") -> General Electric Co | H59: =RTD("cqg.rtd", ,"ContractData",C59, "LastTradeToday",, "T") -> 224.6 | I59: =RTD("cqg.rtd", ,"ContractData",C59, "NetLastTradeToday",, "T") -> 1.36 | J59: =IFERROR(RTD("cqg.rtd", ,"ContractData",C59, "PerCentNetLastTrade",, "T")/100,"") -> 0.00609209819 | K59: =RTD("cqg.rtd", ,"ContractData", C59, "T_CVol",, "T") -> 602560 | L59: 59 | M59: =IFERROR(RANK($J59,$J$1:J$98)+COUNTIF($J$1:J59,J59)-1,"") -> 32 | N59: S.US.GE | O59: S.US.RJF
A60: S.US.GEV | B60: 0 | C60: S.US.GEV | D60: =RTD("cqg.rtd", ,"ContractData",C60, "LongDescription",, "T") -> GE Vernova Inc. | H60: =RTD("cqg.rtd", ,"ContractData",C60, "LastTradeToday",, "T") -> 428.58 | I60: =RTD("cqg.rtd", ,"ContractData",C60, "NetLastTradeToday",, "T") -> -4.26 | J60: =IFERROR(RTD("cqg.rtd", ,"ContractData",C60, "PerCentNetLastTrade",, "T")/100,"") -> -0.00984197394 | K60: =RTD("cqg.rtd", ,"ContractData", C60, "T_CVol",, "T") -> 279096 | L60: 60 | M60: =IFERROR(RANK($J60,$J$1:J$98)+COUNTIF($J$1:J60,J60)-1,"") -> 78 | N60: S.US.GEV | O60: S.US.C
A61: S.US.HWM | B61: 1 | C61: S.US.HWM | D61: =RTD("cqg.rtd", ,"ContractData",C61, "LongDescription",, "T") -> Howmet Aerospace Inc. | H61: =RTD("cqg.rtd", ,"ContractData",C61, "LastTradeToday",, "T") -> 159.74 | I61: =RTD("cqg.rtd", ,"ContractData",C61, "NetLastTradeToday",, "T") -> 0.28 | J61: =IFERROR(RTD("cqg.rtd", ,"ContractData",C61, "PerCentNetLastTrade",, "T")/100,"") -> 0.001755926251 | K61: =RTD("cqg.rtd", ,"ContractData", C61, "T_CVol",, "T") -> 338206 | L61: 61 | M61: =IFERROR(RANK($J61,$J$1:J$98)+COUNTIF($J$1:J61,J61)-1,"") -> 42 | N61: S.US.HWM | O61: S.US.PKG
A62: S.US.JCI | B62: 1 | C62: S.US.JCI | D62: =RTD("cqg.rtd", ,"ContractData",C62, "LongDescription",, "T") -> Johnson Controls International plc | H62: =RTD("cqg.rtd", ,"ContractData",C62, "LastTradeToday",, "T") -> 96.38 | I62: =RTD("cqg.rtd", ,"ContractData",C62, "NetLastTradeToday",, "T") -> 0.03 | J62: =IFERROR(RTD("cqg.rtd", ,"ContractData",C62, "PerCentNetLastTrade",, "T")/100,"") -> 0.0003113648158 | K62: =RTD("cqg.rtd", ,"ContractData", C62, "T_CVol",, "T") -> 175724 | L62: 62 | M62: =IFERROR(RANK($J62,$J$1:J$98)+COUNTIF($J$1:J62,J62)-1,"") -> 49 | N62: S.US.JCI | O62: S.US.DOV
A63: S.US.MMM | B63: 0 | C63: S.US.MMM | D63: =RTD("cqg.rtd", ,"ContractData",C63, "LongDescription",, "T") -> 3M Company | H63: =RTD("cqg.rtd", ,"ContractData",C63, "LastTradeToday",, "T") -> 146.24 | I63: =RTD("cqg.rtd", ,"ContractData",C63, "NetLastTradeToday",, "T") -> -1.64 | J63: =IFERROR(RTD("cqg.rtd", ,"ContractData",C63, "PerCentNetLastTrade",, "T")/100,"") -> -0.01109007303 | K63: =RTD("cqg.rtd", ,"ContractData", C63, "T_CVol",, "T") -> 1794810 | L63: 63 | M63: =IFERROR(RANK($J63,$J$1:J$98)+COUNTIF($J$1:J63,J63)-1,"") -> 82 | N63: S.US.MMM | O63: S.US.MS
A64: S.US.PH | B64: 0 | C64: S.US.PH | D64: =RTD("cqg.rtd", ,"ContractData",C64, "LongDescription",, "T") -> Parker-Hannifin Corp | H64: =RTD("cqg.rtd", ,"ContractData",C64, "LastTradeToday",, "T") -> 670.22 | I64: =RTD("cqg.rtd", ,"ContractData",C64, "NetLastTradeToday",, "T") -> -4.59 | J64: =IFERROR(RTD("cqg.rtd", ,"ContractData",C64, "PerCentNetLastTrade",, "T")/100,"") -> -0.006801914613 | K64: =RTD("cqg.rtd", ,"ContractData", C64, "T_CVol",, "T") -> 33786 | L64: 64 | M64: =IFERROR(RANK($J64,$J$1:J$98)+COUNTIF($J$1:J64,J64)-1,"") -> 73 | N64: S.US.PH | O64: S.US.WFC
A65: S.US.PNR | B65: 0 | C65: S.US.PNR | D65: =RTD("cqg.rtd", ,"ContractData",C65, "LongDescription",, "T") -> Pentair Ltd. | H65: =RTD("cqg.rtd", ,"ContractData",C65, "LastTradeToday",, "T") -> 97.17 | I65: =RTD("cqg.rtd", ,"ContractData",C65, "NetLastTradeToday",, "T") -> -0.01 | J65: =IFERROR(RTD("cqg.rtd", ,"ContractData",C65, "PerCentNetLastTrade",, "T")/100,"") -> -0.0001029018317 | K65: =RTD("cqg.rtd", ,"ContractData", C65, "T_CVol",, "T") -> 54391 | L65: 65 | M65: =IFERROR(RANK($J65,$J$1:J$98)+COUNTIF($J$1:J65,J65)-1,"") -> 52 | N65: S.US.PNR | O65: =VLOOKUP($L65,$M$1:$N$98,2,FALSE) -> S.US.BAC
A66: S.US.RSG | B66: =IF(J66>0,1,0) -> 1 | C66: S.US.RSG | D66: =RTD("cqg.rtd", ,"ContractData",C66, "LongDescription",, "T") -> Republic Services Inc ClA | H66: =RTD("cqg.rtd", ,"ContractData",C66, "LastTradeToday",, "T") -> 240.99 | I66: =RTD("cqg.rtd", ,"ContractData",C66, "NetLastTradeToday",, "T") -> 2.92 | J66: =IFERROR(RTD("cqg.rtd", ,"ContractData",C66, "PerCentNetLastTrade",, "T")/100,"") -> 0.01226530012 | K66: =RTD("cqg.rtd", ,"ContractData", C66, "T_CVol",, "T") -> 107358 | L66: 66 | M66: =IFERROR(RANK($J66,$J$1:J$98)+COUNTIF($J$1:J66,J66)-1,"") -> 19 | N66: =C66 -> S.US.RSG | O66: S.US.AXON
A67: S.US.RTX | B67: 1 | C67: S.US.RTX | D67: =RTD("cqg.rtd", ,"ContractData",C67, "LongDescription",, "T") -> RTX Corporation | H67: =RTD("cqg.rtd", ,"ContractData",C67, "LastTradeToday",, "T") -> 132.86 | I67: =RTD("cqg.rtd", ,"ContractData",C67, "NetLastTradeToday",, "T") -> 2.07 | J67: =IFERROR(RTD("cqg.rtd", ,"ContractData",C67, "PerCentNetLastTrade",, "T")/100,"") -> 0.01582689808 | K67: =RTD("cqg.rtd", ,"ContractData", C67, "T_CVol",, "T") -> 389788 | L67: =L66+1 -> 67 | M67: =IFERROR(RANK($J67,$J$1:J$98)+COUNTIF($J$1:J67,J67)-1,"") -> 11 | N67: S.US.RTX | O67: S.US.AMP
A68: S.US.TT | B68: 0 | C68: S.US.TT | D68: =RTD("cqg.rtd", ,"ContractData",C68, "LongDescription",, "T") -> Trane Technologies plc | H68: =RTD("cqg.rtd", ,"ContractData",C68, "LastTradeToday",, "T") -> 419.59 | I68: =RTD("cqg.rtd", ,"ContractData",C68, "NetLastTradeToday",, "T") -> -0.07 | J68: =IFERROR(RTD("cqg.rtd", ,"ContractData",C68, "PerCentNetLastTrade",, "T")/100,"") -> -0.0001668016966 | K68: =RTD("cqg.rtd", ,"ContractData", C68, "T_CVol",, "T") -> 77231 | L68: 68 | M68: =IFERROR(RANK($J68,$J$1:J$98)+COUNTIF($J$1:J68,J68)-1,"") -> 53 | N68: S.US.TT | O68: S.US.AXP
A69: S.US.UAL | B69: 0 | C69: S.US.UAL | D69: =RTD("cqg.rtd", ,"ContractData",C69, "LongDescription",, "T") -> UAL Continental Holdings, Inc. | H69: =RTD("cqg.rtd", ,"ContractData",C69, "LastTradeToday",, "T") -> 77.67 | I69: =RTD("cqg.rtd", ,"ContractData",C69, "NetLastTradeToday",, "T") -> -1.32 | J69: =IFERROR(RTD("cqg.rtd", ,"ContractData",C69, "PerCentNetLastTrade",, "T")/100,"") -> -0.01671097607 | K69: =RTD("cqg.rtd", ,"ContractData", C69, "T_CVol",, "T") -> 712537 | L69: 69 | M69: =IFERROR(RANK($J69,$J$1:J$98)+COUNTIF($J$1:J69,J69)-1,"") -> 89 | N69: S.US.UAL | O69: S.US.RL
A70: S.US.VLTO | B70: 1 | C70: S.US.VLTO | D70: =RTD("cqg.rtd", ,"ContractData",C70, "LongDescription",, "T") -> Veralto Corporation | H70: =RTD("cqg.rtd", ,"ContractData",C70, "LastTradeToday",, "T") -> 99.94 | I70: =RTD("cqg.rtd", ,"ContractData",C70, "NetLastTradeToday",, "T") -> 0.48 | J70: =IFERROR(RTD("cqg.rtd", ,"ContractData",C70, "PerCentNetLastTrade",, "T")/100,"") -> 0.004826060728 | K70: =RTD("cqg.rtd", ,"ContractData", C70, "T_CVol",, "T") -> 77969 | L70: 70 | M70: =IFERROR(RANK($J70,$J$1:J$98)+COUNTIF($J$1:J70,J70)-1,"") -> 35 | N70: S.US.VLTO | O70: S.US.ZBRA
A71: S.US.WAB | B71: 0 | C71: S.US.WAB | D71: =RTD("cqg.rtd", ,"ContractData",C71, "LongDescription",, "T") -> Westinghouse Air Brake Co | H71: =RTD("cqg.rtd", ,"ContractData",C71, "LastTradeToday",, "T") -> 203.33 | I71: =RTD("cqg.rtd", ,"ContractData",C71, "NetLastTradeToday",, "T") -> -0.45 | J71: =IFERROR(RTD("cqg.rtd", ,"ContractData",C71, "PerCentNetLastTrade",, "T")/100,"") -> -0.002208263814 | K71: =RTD("cqg.rtd", ,"ContractData", C71, "T_CVol",, "T") -> 42256 | L71: 71 | M71: =IFERROR(RANK($J71,$J$1:J$98)+COUNTIF($J$1:J71,J71)-1,"") -> 56 | N71: S.US.WAB | O71: S.US.TPR
A72: S.US.ANET | B72: 0 | C72: S.US.ANET | D72: =RTD("cqg.rtd", ,"ContractData",C72, "LongDescription",, "T") -> Arista Networks, Inc. | H72: =RTD("cqg.rtd", ,"ContractData",C72, "LastTradeToday",, "T") -> 95.23 | I72: =RTD("cqg.rtd", ,"ContractData",C72, "NetLastTradeToday",, "T") -> -2.99 | J72: =IFERROR(RTD("cqg.rtd", ,"ContractData",C72, "PerCentNetLastTrade",, "T")/100,"") -> -0.0304418652 | K72: =RTD("cqg.rtd", ,"ContractData", C72, "T_CVol",, "T") -> 1243040 | L72: 72 | M72: =IFERROR(RANK($J72,$J$1:J$98)+COUNTIF($J$1:J72,J72)-1,"") -> 95 | N72: S.US.ANET | O72: S.US.CEG
A73: S.US.AVGO | B73: 0 | C73: S.US.AVGO | D73: =RTD("cqg.rtd", ,"ContractData",C73, "LongDescription",, "T") -> Broadcom Inc. | H73: =RTD("cqg.rtd", ,"ContractData",C73, "LastTradeToday",, "T") -> 229.58 | I73: =RTD("cqg.rtd", ,"ContractData",C73, "NetLastTradeToday",, "T") -> -2.54 | J73: =IFERROR(RTD("cqg.rtd", ,"ContractData",C73, "PerCentNetLastTrade",, "T")/100,"") -> -0.01094261589 | K73: =RTD("cqg.rtd", ,"ContractData", C73, "T_CVol",, "T") -> 2290528 | L73: 73 | M73: =IFERROR(RANK($J73,$J$1:J$98)+COUNTIF($J$1:J73,J73)-1,"") -> 81 | N73: S.US.AVGO | O73: S.US.PH
A74: S.US.FFIV | B74: 1 | C74: S.US.FFIV | D74: =RTD("cqg.rtd", ,"ContractData",C74, "LongDescription",, "T") -> F5, Inc. | H74: =RTD("cqg.rtd", ,"ContractData",C74, "LastTradeToday",, "T") -> 282.31 | I74: =RTD("cqg.rtd", ,"ContractData",C74, "NetLastTradeToday",, "T") -> 0.72 | J74: =IFERROR(RTD("cqg.rtd", ,"ContractData",C74, "PerCentNetLastTrade",, "T")/100,"") -> 0.002556908981 | K74: =RTD("cqg.rtd", ,"ContractData", C74, "T_CVol",, "T") -> 12387 | L74: 74 | M74: =IFERROR(RANK($J74,$J$1:J$98)+COUNTIF($J$1:J74,J74)-1,"") -> 41 | N74: S.US.FFIV | O74: S.US.DAL
A75: S.US.FICO | B75: 1 | C75: S.US.FICO | D75: =RTD("cqg.rtd", ,"ContractData",C75, "LongDescription",, "T") -> Fair Isaac Inc | H75: =RTD("cqg.rtd", ,"ContractData",C75, "LastTradeToday",, "T") -> 2146.73 | I75: =RTD("cqg.rtd", ,"ContractData",C75, "NetLastTradeToday",, "T") -> 20.83 | J75: =IFERROR(RTD("cqg.rtd", ,"ContractData",C75, "PerCentNetLastTrade",, "T")/100,"") -> 0.009798203114 | K75: =RTD("cqg.rtd", ,"ContractData", C75, "T_CVol",, "T") -> 15985 | L75: 75 | M75: =IFERROR(RANK($J75,$J$1:J$98)+COUNTIF($J$1:J75,J75)-1,"") -> 24 | N75: S.US.FICO | O75: S.US.CMI
A76: S.US.GDDY | B76: 1 | C76: S.US.GDDY | D76: =RTD("cqg.rtd", ,"ContractData",C76, "LongDescription",, "T") -> GoDaddy Inc. | H76: =RTD("cqg.rtd", ,"ContractData",C76, "LastTradeToday",, "T") -> 188.1 | I76: =RTD("cqg.rtd", ,"ContractData",C76, "NetLastTradeToday",, "T") -> 0.01 | J76: =IFERROR(RTD("cqg.rtd", ,"ContractData",C76, "PerCentNetLastTrade",, "T")/100,"") -> 5.316603754e-05 | K76: =RTD("cqg.rtd", ,"ContractData", C76, "T_CVol",, "T") -> 50697 | L76: 76 | M76: =IFERROR(RANK($J76,$J$1:J$98)+COUNTIF($J$1:J76,J76)-1,"") -> 51 | N76: S.US.GDDY | O76: S.US.COF
A77: S.US.GLW | B77: 1 | C77: S.US.GLW | D77: =RTD("cqg.rtd", ,"ContractData",C77, "LongDescription",, "T") -> Corning Incorporated | H77: =RTD("cqg.rtd", ,"ContractData",C77, "LastTradeToday",, "T") -> 47.17 | I77: =RTD("cqg.rtd", ,"ContractData",C77, "NetLastTradeToday",, "T") -> 0.16 | J77: =IFERROR(RTD("cqg.rtd", ,"ContractData",C77, "PerCentNetLastTrade",, "T")/100,"") -> 0.003403531164 | K77: =RTD("cqg.rtd", ,"ContractData", C77, "T_CVol",, "T") -> 497682 | L77: 77 | M77: =IFERROR(RANK($J77,$J$1:J$98)+COUNTIF($J$1:J77,J77)-1,"") -> 40 | N77: S.US.GLW | O77: S.US.RCL
A78: S.US.IBM | B78: 1 | C78: S.US.IBM | D78: =RTD("cqg.rtd", ,"ContractData",C78, "LongDescription",, "T") -> International Business Machines | H78: =RTD("cqg.rtd", ,"ContractData",C78, "LastTradeToday",, "T") -> 261.83 | I78: =RTD("cqg.rtd", ,"ContractData",C78, "NetLastTradeToday",, "T") -> 4.01 | J78: =IFERROR(RTD("cqg.rtd", ,"ContractData",C78, "PerCentNetLastTrade",, "T")/100,"") -> 0.01555348693 | K78: =RTD("cqg.rtd", ,"ContractData", C78, "T_CVol",, "T") -> 303957 | L78: 78 | M78: =IFERROR(RANK($J78,$J$1:J$98)+COUNTIF($J$1:J78,J78)-1,"") -> 12 | N78: S.US.IBM | O78: S.US.GEV
A79: S.US.MSI | B79: 1 | C79: S.US.MSI | D79: =RTD("cqg.rtd", ,"ContractData",C79, "LongDescription",, "T") -> Motorola Solutions, Inc. | H79: =RTD("cqg.rtd", ,"ContractData",C79, "LastTradeToday",, "T") -> 420.75 | I79: =RTD("cqg.rtd", ,"ContractData",C79, "NetLastTradeToday",, "T") -> 5.55 | J79: =IFERROR(RTD("cqg.rtd", ,"ContractData",C79, "PerCentNetLastTrade",, "T")/100,"") -> 0.01336705202 | K79: =RTD("cqg.rtd", ,"ContractData", C79, "T_CVol",, "T") -> 53873 | L79: 79 | M79: =IFERROR(RANK($J79,$J$1:J$98)+COUNTIF($J$1:J79,J79)-1,"") -> 16 | N79: S.US.MSI | O79: S.US.APO
A80: S.US.NVDA | B80: 0 | C80: S.US.NVDA | D80: =RTD("cqg.rtd", ,"ContractData",C80, "LongDescription",, "T") -> NVIDIA Corp | H80: =RTD("cqg.rtd", ,"ContractData",C80, "LastTradeToday",, "T") -> 133.31 | I80: =RTD("cqg.rtd", ,"ContractData",C80, "NetLastTradeToday",, "T") -> -2.03 | J80: =IFERROR(RTD("cqg.rtd", ,"ContractData",C80, "PerCentNetLastTrade",, "T")/100,"") -> -0.01499926112 | K80: =RTD("cqg.rtd", ,"ContractData", C80, "T_CVol",, "T") -> 44235568 | L80: 80 | M80: =IFERROR(RANK($J80,$J$1:J$98)+COUNTIF($J$1:J80,J80)-1,"") -> 85 | N80: S.US.NVDA | O80: S.US.IP
A81: S.US.PLTR | B81: 0 | C81: S.US.PLTR | D81: =RTD("cqg.rtd", ,"ContractData",C81, "LongDescription",, "T") -> Palantir Technologies Inc. | H81: =RTD("cqg.rtd", ,"ContractData",C81, "LastTradeToday",, "T") -> 127.63 | I81: =RTD("cqg.rtd", ,"ContractData",C81, "NetLastTradeToday",, "T") -> -2.55 | J81: =IFERROR(RTD("cqg.rtd", ,"ContractData",C81, "PerCentNetLastTrade",, "T")/100,"") -> -0.01958826241 | K81: =RTD("cqg.rtd", ,"ContractData", C81, "T_CVol",, "T") -> 14030579 | L81: 81 | M81: =IFERROR(RANK($J81,$J$1:J$98)+COUNTIF($J$1:J81,J81)-1,"") -> 92 | N81: S.US.PLTR | O81: S.US.AVGO
A82: S.US.TYL | B82: 1 | C82: S.US.TYL | D82: =RTD("cqg.rtd", ,"ContractData",C82, "LongDescription",, "T") -> TYLER TECHNOLOGIES INC | H82: =RTD("cqg.rtd", ,"ContractData",C82, "LastTradeToday",, "T") -> 562.07 | I82: =RTD("cqg.rtd", ,"ContractData",C82, "NetLastTradeToday",, "T") -> 0.07 | J82: =IFERROR(RTD("cqg.rtd", ,"ContractData",C82, "PerCentNetLastTrade",, "T")/100,"") -> 0.0001245551601 | K82: =RTD("cqg.rtd", ,"ContractData", C82, "T_CVol",, "T") -> 11457 | L82: 82 | M82: =IFERROR(RANK($J82,$J$1:J$98)+COUNTIF($J$1:J82,J82)-1,"") -> 50 | N82: S.US.TYL | O82: S.US.MMM
A83: S.US.ZBRA | B83: 0 | C83: S.US.ZBRA | D83: =RTD("cqg.rtd", ,"ContractData",C83, "LongDescription",, "T") -> Zebra Technologies Corp | H83: =RTD("cqg.rtd", ,"ContractData",C83, "LastTradeToday",, "T") -> 297.52 | I83: =RTD("cqg.rtd", ,"ContractData",C83, "NetLastTradeToday",, "T") -> -1.75 | J83: =IFERROR(RTD("cqg.rtd", ,"ContractData",C83, "PerCentNetLastTrade",, "T")/100,"") -> -0.005847562402 | K83: =RTD("cqg.rtd", ,"ContractData", C83, "T_CVol",, "T") -> 32162 | L83: 83 | M83: =IFERROR(RANK($J83,$J$1:J$98)+COUNTIF($J$1:J83,J83)-1,"") -> 70 | N83: S.US.ZBRA | O83: S.US.META
A84: S.US.IP | B84: 0 | C84: S.US.IP | D84: =RTD("cqg.rtd", ,"ContractData",C84, "LongDescription",, "T") -> International Paper Co | H84: =RTD("cqg.rtd", ,"ContractData",C84, "LastTradeToday",, "T") -> 49.77 | I84: =RTD("cqg.rtd", ,"ContractData",C84, "NetLastTradeToday",, "T") -> -0.55 | J84: =IFERROR(RTD("cqg.rtd", ,"ContractData",C84, "PerCentNetLastTrade",, "T")/100,"") -> -0.01093004769 | K84: =RTD("cqg.rtd", ,"ContractData", C84, "T_CVol",, "T") -> 723541 | L84: 84 | M84: =IFERROR(RANK($J84,$J$1:J$98)+COUNTIF($J$1:J84,J84)-1,"") -> 80 | N84: S.US.IP | O84: S.US.SYF
A85: S.US.PKG | B85: 0 | C85: S.US.PKG | D85: =RTD("cqg.rtd", ,"ContractData",C85, "LongDescription",, "T") -> Packaging Corp of America | H85: =RTD("cqg.rtd", ,"ContractData",C85, "LastTradeToday",, "T") -> 191.26 | I85: =RTD("cqg.rtd", ,"ContractData",C85, "NetLastTradeToday",, "T") -> -0.65 | J85: =IFERROR(RTD("cqg.rtd", ,"ContractData",C85, "PerCentNetLastTrade",, "T")/100,"") -> -0.003387004325 | K85: =RTD("cqg.rtd", ,"ContractData", C85, "T_CVol",, "T") -> 75829 | L85: 85 | M85: =IFERROR(RANK($J85,$J$1:J$98)+COUNTIF($J$1:J85,J85)-1,"") -> 61 | N85: S.US.PKG | O85: S.US.NVDA
A86: S.US.CBRE | B86: 0 | C86: S.US.CBRE | D86: =RTD("cqg.rtd", ,"ContractData",C86, "LongDescription",, "T") -> CBRE Group, Inc. | H86: =RTD("cqg.rtd", ,"ContractData",C86, "LastTradeToday",, "T") -> 128.83 | I86: =RTD("cqg.rtd", ,"ContractData",C86, "NetLastTradeToday",, "T") -> -0.23 | J86: =IFERROR(RTD("cqg.rtd", ,"ContractData",C86, "PerCentNetLastTrade",, "T")/100,"") -> -0.001782116845 | K86: =RTD("cqg.rtd", ,"ContractData", C86, "T_CVol",, "T") -> 44461 | L86: 86 | M86: =IFERROR(RANK($J86,$J$1:J$98)+COUNTIF($J$1:J86,J86)-1,"") -> 55 | N86: S.US.CBRE | O86: S.US.OKE
A87: S.US.IRM | B87: 1 | C87: S.US.IRM | D87: =RTD("cqg.rtd", ,"ContractData",C87, "LongDescription",, "T") -> Iron Mountain Inc | H87: =RTD("cqg.rtd", ,"ContractData",C87, "LastTradeToday",, "T") -> 97.84 | I87: =RTD("cqg.rtd", ,"ContractData",C87, "NetLastTradeToday",, "T") -> 0.7 | J87: =IFERROR(RTD("cqg.rtd", ,"ContractData",C87, "PerCentNetLastTrade",, "T")/100,"") -> 0.007206094297 | K87: =RTD("cqg.rtd", ,"ContractData", C87, "T_CVol",, "T") -> 60523 | L87: 87 | M87: =IFERROR(RANK($J87,$J$1:J$98)+COUNTIF($J$1:J87,J87)-1,"") -> 29 | N87: S.US.IRM | O87: S.US.VST
A88: S.US.WELL | B88: 1 | C88: S.US.WELL | D88: =RTD("cqg.rtd", ,"ContractData",C88, "LongDescription",, "T") -> Welltower Inc. | H88: =RTD("cqg.rtd", ,"ContractData",C88, "LastTradeToday",, "T") -> 145.27 | I88: =RTD("cqg.rtd", ,"ContractData",C88, "NetLastTradeToday",, "T") -> 1.87 | J88: =IFERROR(RTD("cqg.rtd", ,"ContractData",C88, "PerCentNetLastTrade",, "T")/100,"") -> 0.0130404463 | K88: =RTD("cqg.rtd", ,"ContractData", C88, "T_CVol",, "T") -> 105301 | L88: 88 | M88: =IFERROR(RANK($J88,$J$1:J$98)+COUNTIF($J$1:J88,J88)-1,"") -> 17 | N88: S.US.WELL | O88: S.US.TRGP
A89: S.US.AEE | B89: 1 | C89: S.US.AEE | D89: =RTD("cqg.rtd", ,"ContractData",C89, "LongDescription",, "T") -> Ameren Corp | H89: =RTD("cqg.rtd", ,"ContractData",C89, "LastTradeToday",, "T") -> 96.32 | I89: =RTD("cqg.rtd", ,"ContractData",C89, "NetLastTradeToday",, "T") -> 1.31 | J89: =IFERROR(RTD("cqg.rtd", ,"ContractData",C89, "PerCentNetLastTrade",, "T")/100,"") -> 0.01378802231 | K89: =RTD("cqg.rtd", ,"ContractData", C89, "T_CVol",, "T") -> 107835 | L89: 89 | M89: =IFERROR(RANK($J89,$J$1:J$98)+COUNTIF($J$1:J89,J89)-1,"") -> 15 | N89: S.US.AEE | O89: S.US.UAL
A90: S.US.ATO | B90: 1 | C90: S.US.ATO | D90: =RTD("cqg.rtd", ,"ContractData",C90, "LongDescription",, "T") -> Atmos Energy Corp | H90: =RTD("cqg.rtd", ,"ContractData",C90, "LastTradeToday",, "T") -> 154.36 | I90: =RTD("cqg.rtd", ,"ContractData",C90, "NetLastTradeToday",, "T") -> 2.11 | J90: =IFERROR(RTD("cqg.rtd", ,"ContractData",C90, "PerCentNetLastTrade",, "T")/100,"") -> 0.01385878489 | K90: =RTD("cqg.rtd", ,"ContractData", C90, "T_CVol",, "T") -> 45471 | L90: 90 | M90: =IFERROR(RANK($J90,$J$1:J$98)+COUNTIF($J$1:J90,J90)-1,"") -> 14 | N90: S.US.ATO | O90: S.US.BKR
A91: S.US.CEG | B91: 0 | C91: S.US.CEG | D91: =RTD("cqg.rtd", ,"ContractData",C91, "LongDescription",, "T") -> Constellation Energy Corporation | H91: =RTD("cqg.rtd", ,"ContractData",C91, "LastTradeToday",, "T") -> 286.2 | I91: =RTD("cqg.rtd", ,"ContractData",C91, "NetLastTradeToday",, "T") -> -1.95 | J91: =IFERROR(RTD("cqg.rtd", ,"ContractData",C91, "PerCentNetLastTrade",, "T")/100,"") -> -0.006767308693 | K91: =RTD("cqg.rtd", ,"ContractData", C91, "T_CVol",, "T") -> 139894 | L91: 91 | M91: =IFERROR(RANK($J91,$J$1:J$98)+COUNTIF($J$1:J91,J91)-1,"") -> 72 | N91: S.US.CEG | O91: S.US.ISRG
A92: S.US.ETR | B92: 1 | C92: S.US.ETR | D92: =RTD("cqg.rtd", ,"ContractData",C92, "LongDescription",, "T") -> Entergy Corporation | H92: =RTD("cqg.rtd", ,"ContractData",C92, "LastTradeToday",, "T") -> 82.1 | I92: =RTD("cqg.rtd", ,"ContractData",C92, "NetLastTradeToday",, "T") -> 1.59 | J92: =IFERROR(RTD("cqg.rtd", ,"ContractData",C92, "PerCentNetLastTrade",, "T")/100,"") -> 0.01974909949 | K92: =RTD("cqg.rtd", ,"ContractData", C92, "T_CVol",, "T") -> 188503 | L92: 92 | M92: =IFERROR(RANK($J92,$J$1:J$98)+COUNTIF($J$1:J92,J92)-1,"") -> 4 | N92: S.US.ETR | O92: S.US.PLTR
A93: S.US.EVRG | B93: 1 | C93: S.US.EVRG | D93: =RTD("cqg.rtd", ,"ContractData",C93, "LongDescription",, "T") -> Evergy, Inc. | H93: =RTD("cqg.rtd", ,"ContractData",C93, "LastTradeToday",, "T") -> 65.09 | I93: =RTD("cqg.rtd", ,"ContractData",C93, "NetLastTradeToday",, "T") -> 1.03 | J93: =IFERROR(RTD("cqg.rtd", ,"ContractData",C93, "PerCentNetLastTrade",, "T")/100,"") -> 0.01607867624 | K93: =RTD("cqg.rtd", ,"ContractData", C93, "T_CVol",, "T") -> 94390 | L93: 93 | M93: =IFERROR(RANK($J93,$J$1:J$98)+COUNTIF($J$1:J93,J93)-1,"") -> 10 | N93: S.US.EVRG | O93: S.US.AMZN
A94: S.US.NI | B94: 1 | C94: S.US.NI | D94: =RTD("cqg.rtd", ,"ContractData",C94, "LongDescription",, "T") -> NiSource Inc | H94: =RTD("cqg.rtd", ,"ContractData",C94, "LastTradeToday",, "T") -> 38.55 | I94: =RTD("cqg.rtd", ,"ContractData",C94, "NetLastTradeToday",, "T") -> 0.67 | J94: =IFERROR(RTD("cqg.rtd", ,"ContractData",C94, "PerCentNetLastTrade",, "T")/100,"") -> 0.017687434 | K94: =RTD("cqg.rtd", ,"ContractData", C94, "T_CVol",, "T") -> 134166 | L94: 94 | M94: =IFERROR(RANK($J94,$J$1:J$98)+COUNTIF($J$1:J94,J94)-1,"") -> 7 | N94: S.US.NI | O94: S.US.KKR
A95: S.US.NRG | B95: 1 | C95: S.US.NRG | D95: =RTD("cqg.rtd", ,"ContractData",C95, "LongDescription",, "T") -> NRG Energy Inc | H95: =RTD("cqg.rtd", ,"ContractData",C95, "LastTradeToday",, "T") -> 155.55 | I95: =RTD("cqg.rtd", ,"ContractData",C95, "NetLastTradeToday",, "T") -> 1.74 | J95: =IFERROR(RTD("cqg.rtd", ,"ContractData",C95, "PerCentNetLastTrade",, "T")/100,"") -> 0.01131265847 | K95: =RTD("cqg.rtd", ,"ContractData", C95, "T_CVol",, "T") -> 356424 | L95: 95 | M95: =IFERROR(RANK($J95,$J$1:J$98)+COUNTIF($J$1:J95,J95)-1,"") -> 20 | N95: S.US.NRG | O95: S.US.ANET
A96: S.US.PEG | B96: 1 | C96: S.US.PEG | D96: =RTD("cqg.rtd", ,"ContractData",C96, "LongDescription",, "T") -> Pub Svc Entrpr Grp Inc | H96: =RTD("cqg.rtd", ,"ContractData",C96, "LastTradeToday",, "T") -> 78.44 | I96: =RTD("cqg.rtd", ,"ContractData",C96, "NetLastTradeToday",, "T") -> 1.15 | J96: =IFERROR(RTD("cqg.rtd", ,"ContractData",C96, "PerCentNetLastTrade",, "T")/100,"") -> 0.01487902704 | K96: =RTD("cqg.rtd", ,"ContractData", C96, "T_CVol",, "T") -> 98909 | L96: 96 | M96: =IFERROR(RANK($J96,$J$1:J$98)+COUNTIF($J$1:J96,J96)-1,"") -> 13 | N96: S.US.PEG | O96: S.US.TSLA
A97: S.US.PPL | B97: 1 | C97: S.US.PPL | D97: =RTD("cqg.rtd", ,"ContractData",C97, "LongDescription",, "T") -> PPL Corp | H97: =RTD("cqg.rtd", ,"ContractData",C97, "LastTradeToday",, "T") -> 34.06 | I97: =RTD("cqg.rtd", ,"ContractData",C97, "NetLastTradeToday",, "T") -> 0.54 | J97: =IFERROR(RTD("cqg.rtd", ,"ContractData",C97, "PerCentNetLastTrade",, "T")/100,"") -> 0.0161097852 | K97: =RTD("cqg.rtd", ,"ContractData", C97, "T_CVol",, "T") -> 389558 | L97: 97 | M97: =IFERROR(RANK($J97,$J$1:J$98)+COUNTIF($J$1:J97,J97)-1,"") -> 9 | N97: S.US.PPL | O97: S.US.TPL
A98: S.US.VST | B98: 0 | C98: S.US.VST | D98: =RTD("cqg.rtd", ,"ContractData",C98, "LongDescription",, "T") -> Vistra Corp. | H98: =RTD("cqg.rtd", ,"ContractData",C98, "LastTradeToday",, "T") -> 152.27 | I98: =RTD("cqg.rtd", ,"ContractData",C98, "NetLastTradeToday",, "T") -> -2.45 | J98: =IFERROR(RTD("cqg.rtd", ,"ContractData",C98, "PerCentNetLastTrade",, "T")/100,"") -> -0.01583505688 | K98: =RTD("cqg.rtd", ,"ContractData", C98, "T_CVol",, "T") -> 588284 | L98: 98 | M98: =IFERROR(RANK($J98,$J$1:J$98)+COUNTIF($J$1:J98,J98)-1,"") -> 87 | N98: S.US.VST | O98: S.US.WMT
B99: =SUM(B1:B98)/98 -> 0.5204081633
